Workbook

Sheet Základní údaje
A1: kolej: Blanice, VŠE
A2: OBDOBÍ:
A3: 2021-01-01 | B3: 2024-12-30
A4: Identifikace subjektu podávajícího nabídku:
A5: Název subjektu:
A6: IČ:
A7: Sídlo:
A8: Zapsaná v:
D9: Předpoklad roční inflace
D10: 1. rok | E10: 2. rok | F10: 3. rok | G10: 4. rok
A11: CENA pracovní dny [Kč/hodinu/člověka]: | B11: 0 | C11: =IF(B11<>0,B12/B11,0) -> 0 | D11: 0 | E11: 0.03 | F11: 0.03 | G11: 0.03
A12: CENA víkendy [Kč/hodinu/člověka]: | B12: 0 | C12: =IF(B11<>0,(5*B11+2*B12)/7/B11,0) -> 0 | D12: 1 | E12: =1+E11 -> 1.03 | F12: =1+F11 -> 1.03 | G12: 1.03
D13: 1 | E13: =+D13*E12 -> 1.03 | F13: =+E13*F12 -> 1.0609 | G13: 1.092727 | H13: =SUM(D13:G13)/4 -> 1.04590675
A15: CENA CELKEM ZA ZAKÁZKU: | B15: ='Rozpis úklidu'!B136:D136 -> 0

Sheet Rozpis úklidu
A1: ='Základní údaje'!A1 -> kolej: Blanice, VŠE | B1: ='Základní údaje'!A2 -> OBDOBÍ: | C1: ='Základní údaje'!A3 -> 2021-01-01 | D1: ='Základní údaje'!B3 -> 2024-12-30
A2: Cena za 1 úklidovou hodinu: | B2: ='Základní údaje'!B11 -> 0 | C2: Kč/hod.
A3: Úklidová jednotka | B3: plocha [m²] | C3: kusy [-] | D3: počet úklidových jednotek | E3: CELKEM [m²] [ks] | F3: uklízí se | G3: počet úklidů | H3: sezonní týden od | I3: sezonní týden do | J3: uklízí se v pracovní dny | K3: uklízí se o víkendech | L3: Popis činnosti | M3: předpokládaný čas na úklidovou jednotku [min] | N3: Navrhovaný čas na úklidovou jednotku [min.] | O3: celkový čas úklidu všech úklidových jednotek [hod.] | P3: Cena za úklidovou jednotku [Kč] | Q3: cena celkem za všechny úklidové jednotky (prac. dny) [Kč] | R3: Cena celkem za období úklidu [Kč] | S3: Poznámka
A4: Schodiště | B4: 4.5 | D4: 31 | E4: =B4*D4+C4*D4 -> 139.5 | F4: denně | G4: 1 | J4: 1 | K4: 0 | L4: Typová činnost č.: 1 | M4: 2 | O4: =IF(N4=0,M4*D4/60,N4*D4/60) -> 1.033333333 | P4: =ROUND(IF(N4=0,M4/60*$B$2,N4/60*$B$2),0) -> 0 | Q4: =P4*D4 -> 0 | R4: =IF(F4="denně",Q4*G4*$B$132,IF(F4="týdně",Q4*G4*$B$133,IF(F4="měsíčně",Q4*G4*$B$134,IF(F4="čtvrtletně",Q4*G4*4*$B$135,IF(F4="ročně",Q4*G4*$B$135,G4*Q4*$B$135)))))*'Základní údaje'!$H$13*IF(K4=1,'Základní údaje'!$C$12,1) -> 0
A5: výtah malý | C5: 1 | D5: 3 | E5: 3 | F5: denně | G5: 1 | J5: 1 | K5: 0 | L5: zamést, vytřít, umýt stěny, vyleštit zrcadlo, vyluxovat drážku dveří | M5: 5 | O5: 0.25 | P5: 0 | Q5: 0 | R5: =IF(F5="denně",Q5*G5*$B$132,IF(F5="týdně",Q5*G5*$B$133,IF(F5="měsíčně",Q5*G5*$B$134,IF(F5="čtvrtletně",Q5*G5*4*$B$135,IF(F5="ročně",Q5*G5*$B$135,G5*Q5*$B$135)))))*'Základní údaje'!$H$13*IF(K5=1,'Základní údaje'!$C$12,1) -> 0
A6: výtah velký | C6: 1 | D6: 3 | E6: 3 | F6: denně | G6: 1 | J6: 1 | K6: 0 | L6: zamést, vytřít, umýt stěny, vyleštit zrcadlo, vyluxovat drážku dveří | M6: 15 | O6: 0.75 | P6: 0 | Q6: 0 | R6: =IF(F6="denně",Q6*G6*$B$132,IF(F6="týdně",Q6*G6*$B$133,IF(F6="měsíčně",Q6*G6*$B$134,IF(F6="čtvrtletně",Q6*G6*4*$B$135,IF(F6="ročně",Q6*G6*$B$135,G6*Q6*$B$135)))))*'Základní údaje'!$H$13*IF(K6=1,'Základní údaje'!$C$12,1) -> 0
A7: chodba za výtahy | B7: 35 | D7: 34 | E7: 1190 | F7: denně | G7: 1 | J7: 1 | K7: 0 | L7: Typová činnost č.: 1 | M7: 6 | O7: 3.4 | P7: 0 | Q7: 0 | R7: =IF(F7="denně",Q7*G7*$B$132,IF(F7="týdně",Q7*G7*$B$133,IF(F7="měsíčně",Q7*G7*$B$134,IF(F7="čtvrtletně",Q7*G7*4*$B$135,IF(F7="ročně",Q7*G7*$B$135,G7*Q7*$B$135)))))*'Základní údaje'!$H$13*IF(K7=1,'Základní údaje'!$C$12,1) -> 0
A8: patro chodba | B8: 147 | D8: 10 | E8: 1470 | F8: denně | G8: 1 | J8: 1 | K8: 0 | L8: Typová činnost č.: 1 | M8: 25 | O8: 4.166666667 | P8: 0 | Q8: 0 | R8: =IF(F8="denně",Q8*G8*$B$132,IF(F8="týdně",Q8*G8*$B$133,IF(F8="měsíčně",Q8*G8*$B$134,IF(F8="čtvrtletně",Q8*G8*4*$B$135,IF(F8="ročně",Q8*G8*$B$135,G8*Q8*$B$135)))))*'Základní údaje'!$H$13*IF(K8=1,'Základní údaje'!$C$12,1) -> 0
A9: patro chodba - tkz. téčko | B9: 39 | D9: 11 | E9: 429 | F9: denně | G9: 1 | J9: 1 | K9: 0 | L9: Typová činnost č.: 1 | M9: 7 | O9: 1.283333333 | P9: 0 | Q9: 0 | R9: =IF(F9="denně",Q9*G9*$B$132,IF(F9="týdně",Q9*G9*$B$133,IF(F9="měsíčně",Q9*G9*$B$134,IF(F9="čtvrtletně",Q9*G9*4*$B$135,IF(F9="ročně",Q9*G9*$B$135,G9*Q9*$B$135)))))*'Základní údaje'!$H$13*IF(K9=1,'Základní údaje'!$C$12,1) -> 0
A10: chodba 1PP | B10: 74.5 | D10: 1 | E10: 74.5 | F10: denně | G10: 1 | J10: 1 | K10: 0 | L10: Typová činnost č.: 1 | M10: 12 | O10: 0.2 | P10: 0 | Q10: 0 | R10: =IF(F10="denně",Q10*G10*$B$132,IF(F10="týdně",Q10*G10*$B$133,IF(F10="měsíčně",Q10*G10*$B$134,IF(F10="čtvrtletně",Q10*G10*4*$B$135,IF(F10="ročně",Q10*G10*$B$135,G10*Q10*$B$135)))))*'Základní údaje'!$H$13*IF(K10=1,'Základní údaje'!$C$12,1) -> 0
A11: chodba 2PP | B11: 19.5 | D11: 1 | E11: 19.5 | F11: denně | G11: 1 | J11: 1 | K11: 0 | L11: Typová činnost č.: 1 | M11: 3 | O11: 0.05 | P11: 0 | Q11: 0 | R11: =IF(F11="denně",Q11*G11*$B$132,IF(F11="týdně",Q11*G11*$B$133,IF(F11="měsíčně",Q11*G11*$B$134,IF(F11="čtvrtletně",Q11*G11*4*$B$135,IF(F11="ročně",Q11*G11*$B$135,G11*Q11*$B$135)))))*'Základní údaje'!$H$13*IF(K11=1,'Základní údaje'!$C$12,1) -> 0
A12: studovna + balkon ( 6m2) | B12: 39 | D12: 15 | E12: 585 | F12: denně | G12: 1 | J12: 1 | K12: 0 | L12: Typová činnost č.: 2 a 3 | M12: 10 | O12: 2.5 | P12: 0 | Q12: 0 | R12: =IF(F12="denně",Q12*G12*$B$132,IF(F12="týdně",Q12*G12*$B$133,IF(F12="měsíčně",Q12*G12*$B$134,IF(F12="čtvrtletně",Q12*G12*4*$B$135,IF(F12="ročně",Q12*G12*$B$135,G12*Q12*$B$135)))))*'Základní údaje'!$H$13*IF(K12=1,'Základní údaje'!$C$12,1) -> 0
A13: spol. místnost - dataprojektor + balkon ( 6m2) | B13: 39 | D13: 1 | E13: 39 | F13: denně | G13: 1 | J13: 1 | K13: 0 | L13: Typová činnost č.: 2 a 3 | M13: 13 | O13: 0.2166666667 | P13: 0 | Q13: 0 | R13: =IF(F13="denně",Q13*G13*$B$132,IF(F13="týdně",Q13*G13*$B$133,IF(F13="měsíčně",Q13*G13*$B$134,IF(F13="čtvrtletně",Q13*G13*4*$B$135,IF(F13="ročně",Q13*G13*$B$135,G13*Q13*$B$135)))))*'Základní údaje'!$H$13*IF(K13=1,'Základní údaje'!$C$12,1) -> 0
A14: spol. místnost - kulečník, piáno + balkon ( 6m2) | B14: 39 | D14: 1 | E14: 39 | F14: denně | G14: 1 | J14: 1 | K14: 0 | L14: Typová činnost č.: 2 a 3 | M14: 13 | O14: 0.2166666667 | P14: 0 | Q14: 0 | R14: =IF(F14="denně",Q14*G14*$B$132,IF(F14="týdně",Q14*G14*$B$133,IF(F14="měsíčně",Q14*G14*$B$134,IF(F14="čtvrtletně",Q14*G14*4*$B$135,IF(F14="ročně",Q14*G14*$B$135,G14*Q14*$B$135)))))*'Základní údaje'!$H$13*IF(K14=1,'Základní údaje'!$C$12,1) -> 0
A15: spol. místnost - herna (obývák) + balkon ( 6m2) | B15: 39 | D15: 1 | E15: 39 | F15: denně | G15: 1 | J15: 1 | K15: 0 | L15: Typová činnost č.: 2 a 3 | M15: 13 | O15: 0.2166666667 | P15: 0 | Q15: 0 | R15: =IF(F15="denně",Q15*G15*$B$132,IF(F15="týdně",Q15*G15*$B$133,IF(F15="měsíčně",Q15*G15*$B$134,IF(F15="čtvrtletně",Q15*G15*4*$B$135,IF(F15="ročně",Q15*G15*$B$135,G15*Q15*$B$135)))))*'Základní údaje'!$H$13*IF(K15=1,'Základní údaje'!$C$12,1) -> 0
A16: spol.místnost s kuchyňkou + balkon ( 6m2) | B16: 46 | D16: 1 | E16: 46 | F16: denně | G16: 1 | J16: 1 | K16: 0 | L16: Typová činnost č.: 2 a 5 | M16: 23 | O16: 0.3833333333 | P16: 0 | Q16: 0 | R16: =IF(F16="denně",Q16*G16*$B$132,IF(F16="týdně",Q16*G16*$B$133,IF(F16="měsíčně",Q16*G16*$B$134,IF(F16="čtvrtletně",Q16*G16*4*$B$135,IF(F16="ročně",Q16*G16*$B$135,G16*Q16*$B$135)))))*'Základní údaje'!$H$13*IF(K16=1,'Základní údaje'!$C$12,1) -> 0
A17: společná prádelna (8x pračka + 2x sušička) | B17: 46 | D17: 1 | E17: 46 | F17: denně | G17: 1 | J17: 1 | K17: 0 | L17: Typová činnost č.: 5 | M17: 45 | O17: 0.75 | P17: 0 | Q17: 0 | R17: =IF(F17="denně",Q17*G17*$B$132,IF(F17="týdně",Q17*G17*$B$133,IF(F17="měsíčně",Q17*G17*$B$134,IF(F17="čtvrtletně",Q17*G17*4*$B$135,IF(F17="ročně",Q17*G17*$B$135,G17*Q17*$B$135)))))*'Základní údaje'!$H$13*IF(K17=1,'Základní údaje'!$C$12,1) -> 0
A18: tělocvična malá ( tanec) + balkon ( 6m2) | B18: 39 | D18: 1 | E18: 39 | F18: denně | G18: 1 | J18: 1 | K18: 0 | L18: Typová činnost č.: 2 a 3 | M18: 20 | O18: 0.3333333333 | P18: 0 | Q18: 0 | R18: =IF(F18="denně",Q18*G18*$B$132,IF(F18="týdně",Q18*G18*$B$133,IF(F18="měsíčně",Q18*G18*$B$134,IF(F18="čtvrtletně",Q18*G18*4*$B$135,IF(F18="ročně",Q18*G18*$B$135,G18*Q18*$B$135)))))*'Základní údaje'!$H$13*IF(K18=1,'Základní údaje'!$C$12,1) -> 0
A19: tělocvična velká (aerobic) | B19: 77 | D19: 1 | E19: 77 | F19: denně | G19: 1 | J19: 1 | K19: 0 | L19: Typová činnost č.: 3 | M19: 39 | O19: 0.65 | P19: 0 | Q19: 0 | R19: =IF(F19="denně",Q19*G19*$B$132,IF(F19="týdně",Q19*G19*$B$133,IF(F19="měsíčně",Q19*G19*$B$134,IF(F19="čtvrtletně",Q19*G19*4*$B$135,IF(F19="ročně",Q19*G19*$B$135,G19*Q19*$B$135)))))*'Základní údaje'!$H$13*IF(K19=1,'Základní údaje'!$C$12,1) -> 0
A20: tělocvična - stolní tenis | B20: 41 | D20: 1 | E20: 41 | F20: denně | G20: 1 | J20: 1 | K20: 0 | L20: Typová činnost č.: 3 | M20: 21 | O20: 0.35 | P20: 0 | Q20: 0 | R20: =IF(F20="denně",Q20*G20*$B$132,IF(F20="týdně",Q20*G20*$B$133,IF(F20="měsíčně",Q20*G20*$B$134,IF(F20="čtvrtletně",Q20*G20*4*$B$135,IF(F20="ročně",Q20*G20*$B$135,G20*Q20*$B$135)))))*'Základní údaje'!$H$13*IF(K20=1,'Základní údaje'!$C$12,1) -> 0
A21: posilovna + balkon ( 6m2) | B21: 228.5 | D21: 1 | E21: 228.5 | F21: denně | G21: 1 | J21: 1 | K21: 0 | L21: Typová činnost č.: 2 a 3 | M21: 114 | O21: 1.9 | P21: 0 | Q21: 0 | R21: =IF(F21="denně",Q21*G21*$B$132,IF(F21="týdně",Q21*G21*$B$133,IF(F21="měsíčně",Q21*G21*$B$134,IF(F21="čtvrtletně",Q21*G21*4*$B$135,IF(F21="ročně",Q21*G21*$B$135,G21*Q21*$B$135)))))*'Základní údaje'!$H$13*IF(K21=1,'Základní údaje'!$C$12,1) -> 0
A22: WC posilovna | C22: 1 | D22: 1 | E22: 1 | F22: denně | G22: 1 | J22: 1 | K22: 0 | L22: Typová činnost č.: 11 | M22: 8 | O22: 0.1333333333 | P22: 0 | Q22: 0 | R22: =IF(F22="denně",Q22*G22*$B$132,IF(F22="týdně",Q22*G22*$B$133,IF(F22="měsíčně",Q22*G22*$B$134,IF(F22="čtvrtletně",Q22*G22*4*$B$135,IF(F22="ročně",Q22*G22*$B$135,G22*Q22*$B$135)))))*'Základní údaje'!$H$13*IF(K22=1,'Základní údaje'!$C$12,1) -> 0
A23: kanceláře+balkón ( 6m2) | B23: 37 | D23: 2 | E23: 74 | F23: denně | G23: 1 | J23: 1 | K23: 0 | L23: Typová činnost č.: 2 a 3 | M23: 9 | O23: 0.3 | P23: 0 | Q23: 0 | R23: =IF(F23="denně",Q23*G23*$B$132,IF(F23="týdně",Q23*G23*$B$133,IF(F23="měsíčně",Q23*G23*$B$134,IF(F23="čtvrtletně",Q23*G23*4*$B$135,IF(F23="ročně",Q23*G23*$B$135,G23*Q23*$B$135)))))*'Základní údaje'!$H$13*IF(K23=1,'Základní údaje'!$C$12,1) -> 0
A24: prostor před hlavním vchodem + schodiště | C24: 1 | D24: 1 | E24: 1 | F24: denně | G24: 1 | J24: 1 | K24: 0 | L24: zamést, pouze při nadměrném znečištění vytřít, vynést odpad | M24: 10 | O24: 0.1666666667 | P24: 0 | Q24: 0 | R24: =IF(F24="denně",Q24*G24*$B$132,IF(F24="týdně",Q24*G24*$B$133,IF(F24="měsíčně",Q24*G24*$B$134,IF(F24="čtvrtletně",Q24*G24*4*$B$135,IF(F24="ročně",Q24*G24*$B$135,G24*Q24*$B$135)))))*'Základní údaje'!$H$13*IF(K24=1,'Základní údaje'!$C$12,1) -> 0
A25: zádveří - hlavní vchod | B25: 15 | D25: 1 | E25: 15 | F25: denně | G25: 1 | J25: 1 | K25: 0 | L25: zamést, pouze při nadměrném znečištění vytřít, vyluxovat rohože, umýt rámy a vyleštit skleněné plochy ( dveře, portály) | M25: 6 | O25: 0.1 | P25: 0 | Q25: 0 | R25: =IF(F25="denně",Q25*G25*$B$132,IF(F25="týdně",Q25*G25*$B$133,IF(F25="měsíčně",Q25*G25*$B$134,IF(F25="čtvrtletně",Q25*G25*4*$B$135,IF(F25="ročně",Q25*G25*$B$135,G25*Q25*$B$135)))))*'Základní údaje'!$H$13*IF(K25=1,'Základní údaje'!$C$12,1) -> 0
A26: Hala před recepcí | B26: 133 | D26: 1 | E26: 133 | F26: denně | G26: 1 | J26: 1 | K26: 0 | L26: Typová činnost č.: 1 | M26: 55 | O26: 0.9166666667 | P26: 0 | Q26: 0 | R26: =IF(F26="denně",Q26*G26*$B$132,IF(F26="týdně",Q26*G26*$B$133,IF(F26="měsíčně",Q26*G26*$B$134,IF(F26="čtvrtletně",Q26*G26*4*$B$135,IF(F26="ročně",Q26*G26*$B$135,G26*Q26*$B$135)))))*'Základní údaje'!$H$13*IF(K26=1,'Základní údaje'!$C$12,1) -> 0
A27: recepce | B27: 18 | D27: 1 | E27: 18 | F27: denně | G27: 1 | J27: 1 | K27: 0 | L27: Typová činnost č.: 3 | M27: 5 | O27: 0.08333333333 | P27: 0 | Q27: 0 | R27: =IF(F27="denně",Q27*G27*$B$132,IF(F27="týdně",Q27*G27*$B$133,IF(F27="měsíčně",Q27*G27*$B$134,IF(F27="čtvrtletně",Q27*G27*4*$B$135,IF(F27="ročně",Q27*G27*$B$135,G27*Q27*$B$135)))))*'Základní údaje'!$H$13*IF(K27=1,'Základní údaje'!$C$12,1) -> 0
A28: zázemí recepce ( šatna + WC) | B28: 17 | D28: 1 | E28: 17 | F28: denně | G28: 1 | J28: 1 | K28: 0 | L28: Typová činnost č.: 3 a 11 | M28: 10 | O28: 0.1666666667 | P28: 0 | Q28: 0 | R28: =IF(F28="denně",Q28*G28*$B$132,IF(F28="týdně",Q28*G28*$B$133,IF(F28="měsíčně",Q28*G28*$B$134,IF(F28="čtvrtletně",Q28*G28*4*$B$135,IF(F28="ročně",Q28*G28*$B$135,G28*Q28*$B$135)))))*'Základní údaje'!$H$13*IF(K28=1,'Základní údaje'!$C$12,1) -> 0
A29: WC pro veřejnost | C29: 1 | D29: 1 | E29: 1 | F29: denně | G29: 1 | J29: 1 | K29: 0 | L29: Typová činnost č.: 11 | M29: 8 | O29: 0.1333333333 | P29: 0 | Q29: 0 | R29: =IF(F29="denně",Q29*G29*$B$132,IF(F29="týdně",Q29*G29*$B$133,IF(F29="měsíčně",Q29*G29*$B$134,IF(F29="čtvrtletně",Q29*G29*4*$B$135,IF(F29="ročně",Q29*G29*$B$135,G29*Q29*$B$135)))))*'Základní údaje'!$H$13*IF(K29=1,'Základní údaje'!$C$12,1) -> 0
A30: chodba ( krček) | B30: 139 | D30: 1 | E30: 139 | F30: denně | G30: 1 | J30: 1 | K30: 0 | L30: Typová činnost č.: 1 a zalití květin | M30: 23 | O30: 0.3833333333 | P30: 0 | Q30: 0 | R30: =IF(F30="denně",Q30*G30*$B$132,IF(F30="týdně",Q30*G30*$B$133,IF(F30="měsíčně",Q30*G30*$B$134,IF(F30="čtvrtletně",Q30*G30*4*$B$135,IF(F30="ročně",Q30*G30*$B$135,G30*Q30*$B$135)))))*'Základní údaje'!$H$13*IF(K30=1,'Základní údaje'!$C$12,1) -> 0
A31: WC - úklidu | C31: 1 | D31: 1 | E31: 1 | F31: denně | G31: 1 | J31: 1 | K31: 0 | L31: Typová činnost č.: 11 | M31: 8 | O31: 0.1333333333 | P31: 0 | Q31: 0 | R31: =IF(F31="denně",Q31*G31*$B$132,IF(F31="týdně",Q31*G31*$B$133,IF(F31="měsíčně",Q31*G31*$B$134,IF(F31="čtvrtletně",Q31*G31*4*$B$135,IF(F31="ročně",Q31*G31*$B$135,G31*Q31*$B$135)))))*'Základní údaje'!$H$13*IF(K31=1,'Základní údaje'!$C$12,1) -> 0
A32: schodiště na střechu | B32: 9 | D32: 3 | E32: 27 | F32: týdně | G32: 1 | J32: 1 | K32: 0 | L32: zamést, vytřít, setřít prach | M32: 5 | O32: 0.25 | P32: 0 | Q32: 0 | R32: =IF(F32="denně",Q32*G32*$B$132,IF(F32="týdně",Q32*G32*$B$133,IF(F32="měsíčně",Q32*G32*$B$134,IF(F32="čtvrtletně",Q32*G32*4*$B$135,IF(F32="ročně",Q32*G32*$B$135,G32*Q32*$B$135)))))*'Základní údaje'!$H$13*IF(K32=1,'Základní údaje'!$C$12,1) -> 0
A33: zábradlí na střechu | C33: 1 | D33: 3 | E33: 3 | F33: týdně | G33: 1 | J33: 1 | K33: 0 | L33: umýt | M33: 3 | O33: 0.15 | P33: 0 | Q33: 0 | R33: =IF(F33="denně",Q33*G33*$B$132,IF(F33="týdně",Q33*G33*$B$133,IF(F33="měsíčně",Q33*G33*$B$134,IF(F33="čtvrtletně",Q33*G33*4*$B$135,IF(F33="ročně",Q33*G33*$B$135,G33*Q33*$B$135)))))*'Základní údaje'!$H$13*IF(K33=1,'Základní údaje'!$C$12,1) -> 0
A34: zábradlí - schodiště | C34: 1 | D34: 62 | E34: 62 | F34: týdně | G34: 1 | J34: 1 | K34: 0 | L34: Typová činnost č.: 1 | M34: 3 | O34: 3.1 | P34: 0 | Q34: 0 | R34: =IF(F34="denně",Q34*G34*$B$132,IF(F34="týdně",Q34*G34*$B$133,IF(F34="měsíčně",Q34*G34*$B$134,IF(F34="čtvrtletně",Q34*G34*4*$B$135,IF(F34="ročně",Q34*G34*$B$135,G34*Q34*$B$135)))))*'Základní údaje'!$H$13*IF(K34=1,'Základní údaje'!$C$12,1) -> 0
A35: zábradlí - chodba za výtahy | C35: 1 | D35: 31 | E35: =B35*D35+C35*D35 -> 31 | F35: týdně | G35: 1 | J35: 1 | K35: 0 | L35: Typová činnost č.: 1 | M35: 3 | O35: =IF(N35=0,M35*D35/60,N35*D35/60) -> 1.55 | P35: =ROUND(IF(N35=0,M35/60*$B$2,N35/60*$B$2),0) -> 0 | Q35: =P35*D35 -> 0 | R35: =IF(F35="denně",Q35*G35*$B$132,IF(F35="týdně",Q35*G35*$B$133,IF(F35="měsíčně",Q35*G35*$B$134,IF(F35="čtvrtletně",Q35*G35*4*$B$135,IF(F35="ročně",Q35*G35*$B$135,G35*Q35*$B$135)))))*'Základní údaje'!$H$13*IF(K35=1,'Základní údaje'!$C$12,1) -> 0
A36: místnost úklízeček a úklid.prost. | B36: 15 | D36: 2 | E36: 30 | F36: týdně | G36: 1 | J36: 1 | K36: 0 | L36: Typová činnost č.: 3 | M36: 10 | O36: 0.3333333333 | P36: 0 | Q36: 0 | R36: =IF(F36="denně",Q36*G36*$B$132,IF(F36="týdně",Q36*G36*$B$133,IF(F36="měsíčně",Q36*G36*$B$134,IF(F36="čtvrtletně",Q36*G36*4*$B$135,IF(F36="ročně",Q36*G36*$B$135,G36*Q36*$B$135)))))*'Základní údaje'!$H$13*IF(K36=1,'Základní údaje'!$C$12,1) -> 0
A37: radiátory ÚT - chodba patro + chodba schodiště ( 17 článků ÚT) | C37: 1 | D37: 78 | E37: 78 | F37: měsíčně | G37: 1 | J37: 1 | K37: 0 | L37: umýt | M37: 8 | O37: 10.4 | P37: 0 | Q37: 0 | R37: =IF(F37="denně",Q37*G37*$B$132,IF(F37="týdně",Q37*G37*$B$133,IF(F37="měsíčně",Q37*G37*$B$134,IF(F37="čtvrtletně",Q37*G37*4*$B$135,IF(F37="ročně",Q37*G37*$B$135,G37*Q37*$B$135)))))*'Základní údaje'!$H$13*IF(K37=1,'Základní údaje'!$C$12,1) -> 0
A38: skleněné plochy + portálové dveře ( oboustranně) | B38: 20.16 | D38: 35 | E38: 705.6 | F38: měsíčně | G38: 1 | J38: 1 | K38: 0 | L38: umýt a vyleštit | M38: 5 | O38: 2.916666667 | P38: 0 | Q38: 0 | R38: =IF(F38="denně",Q38*G38*$B$132,IF(F38="týdně",Q38*G38*$B$133,IF(F38="měsíčně",Q38*G38*$B$134,IF(F38="čtvrtletně",Q38*G38*4*$B$135,IF(F38="ročně",Q38*G38*$B$135,G38*Q38*$B$135)))))*'Základní údaje'!$H$13*IF(K38=1,'Základní údaje'!$C$12,1) -> 0
A39: skleněné chodbové spojovací dveře ( oboustraně) | B39: 7 | D39: 73 | E39: 511 | F39: měsíčně | G39: 1 | J39: 1 | K39: 0 | L39: umýt a vyleštit | M39: 2 | O39: 2.433333333 | P39: 0 | Q39: 0 | R39: =IF(F39="denně",Q39*G39*$B$132,IF(F39="týdně",Q39*G39*$B$133,IF(F39="měsíčně",Q39*G39*$B$134,IF(F39="čtvrtletně",Q39*G39*4*$B$135,IF(F39="ročně",Q39*G39*$B$135,G39*Q39*$B$135)))))*'Základní údaje'!$H$13*IF(K39=1,'Základní údaje'!$C$12,1) -> 0
A40: buňka (skladba 2 + 3 s balkónem): kuchyňka + vstupní prostory | B40: 11 | D40: 1 | E40: 11 | F40: měsíčně | G40: 6 | J40: 1 | K40: 0 | L40: Typová činnost č.: 3 a 5 | M40: 25 | O40: 0.4166666667 | P40: 0 | Q40: 0 | R40: =IF(F40="denně",Q40*G40*$B$132,IF(F40="týdně",Q40*G40*$B$133,IF(F40="měsíčně",Q40*G40*$B$134,IF(F40="čtvrtletně",Q40*G40*4*$B$135,IF(F40="ročně",Q40*G40*$B$135,G40*Q40*$B$135)))))*'Základní údaje'!$H$13*IF(K40=1,'Základní údaje'!$C$12,1) -> 0
A41: buňka (skladba 2 + 3 s balkónem): WC | B41: 1 | D41: 1 | E41: 1 | F41: měsíčně | G41: 6 | J41: 1 | K41: 0 | L41: Typová činnost č.: 11 | M41: 10 | O41: 0.1666666667 | P41: 0 | Q41: 0 | R41: =IF(F41="denně",Q41*G41*$B$132,IF(F41="týdně",Q41*G41*$B$133,IF(F41="měsíčně",Q41*G41*$B$134,IF(F41="čtvrtletně",Q41*G41*4*$B$135,IF(F41="ročně",Q41*G41*$B$135,G41*Q41*$B$135)))))*'Základní údaje'!$H$13*IF(K41=1,'Základní údaje'!$C$12,1) -> 0
A42: buňka (skladba 2 + 3 s balkónem): koupelna se sprchou | B42: 2.2 | D42: 1 | E42: 2.2 | F42: měsíčně | G42: 6 | J42: 1 | K42: 0 | L42: Typová činnost č.: 12 | M42: 10 | O42: 0.1666666667 | P42: 0 | Q42: 0 | R42: =IF(F42="denně",Q42*G42*$B$132,IF(F42="týdně",Q42*G42*$B$133,IF(F42="měsíčně",Q42*G42*$B$134,IF(F42="čtvrtletně",Q42*G42*4*$B$135,IF(F42="ročně",Q42*G42*$B$135,G42*Q42*$B$135)))))*'Základní údaje'!$H$13*IF(K42=1,'Základní údaje'!$C$12,1) -> 0
A43: buňka (skladba 2 + 3 s balkónem): dvoulůžkový pokoj | B43: 13 | D43: 1 | E43: 13 | F43: měsíčně | G43: 6 | J43: 1 | K43: 0 | L43: Typová činnost č.: 2 a 8 | M43: 15 | O43: 0.25 | P43: 0 | Q43: 0 | R43: =IF(F43="denně",Q43*G43*$B$132,IF(F43="týdně",Q43*G43*$B$133,IF(F43="měsíčně",Q43*G43*$B$134,IF(F43="čtvrtletně",Q43*G43*4*$B$135,IF(F43="ročně",Q43*G43*$B$135,G43*Q43*$B$135)))))*'Základní údaje'!$H$13*IF(K43=1,'Základní údaje'!$C$12,1) -> 0
A44: buňka (skladba 2 + 3 s balkónem): třílůžkový pokoj | B44: 18 | D44: 1 | E44: 18 | F44: měsíčně | G44: 6 | J44: 1 | K44: 0 | L44: Typová činnost č.: 2 a 8 | M44: 20 | O44: 0.3333333333 | P44: 0 | Q44: 0 | R44: =IF(F44="denně",Q44*G44*$B$132,IF(F44="týdně",Q44*G44*$B$133,IF(F44="měsíčně",Q44*G44*$B$134,IF(F44="čtvrtletně",Q44*G44*4*$B$135,IF(F44="ročně",Q44*G44*$B$135,G44*Q44*$B$135)))))*'Základní údaje'!$H$13*IF(K44=1,'Základní údaje'!$C$12,1) -> 0
A45: emailové nátěry - schodiště | B45: 6 | D45: 31 | E45: 186 | F45: čtvrtletně | G45: 2 | J45: 1 | K45: 0 | L45: umýt | M45: 1 | O45: 0.5166666667 | P45: 0 | Q45: 0 | R45: =IF(F45="denně",Q45*G45*$B$132,IF(F45="týdně",Q45*G45*$B$133,IF(F45="měsíčně",Q45*G45*$B$134,IF(F45="čtvrtletně",Q45*G45*4*$B$135,IF(F45="ročně",Q45*G45*$B$135,G45*Q45*$B$135)))))*'Základní údaje'!$H$13*IF(K45=1,'Základní údaje'!$C$12,1) -> 0
A46: emailové nátěry - chodba za výtahy | B46: 43 | D46: 34 | E46: 1462 | F46: čtvrtletně | G46: 2 | J46: 1 | K46: 0 | L46: umýt | M46: 7 | O46: 3.966666667 | P46: 0 | Q46: 0 | R46: =IF(F46="denně",Q46*G46*$B$132,IF(F46="týdně",Q46*G46*$B$133,IF(F46="měsíčně",Q46*G46*$B$134,IF(F46="čtvrtletně",Q46*G46*4*$B$135,IF(F46="ročně",Q46*G46*$B$135,G46*Q46*$B$135)))))*'Základní údaje'!$H$13*IF(K46=1,'Základní údaje'!$C$12,1) -> 0
A47: emailové nátěry - patro chodba | B47: 280.5 | D47: 10 | E47: 2805 | F47: čtvrtletně | G47: 2 | J47: 1 | K47: 0 | L47: umýt | M47: 47 | O47: 7.833333333 | P47: 0 | Q47: 0 | R47: =IF(F47="denně",Q47*G47*$B$132,IF(F47="týdně",Q47*G47*$B$133,IF(F47="měsíčně",Q47*G47*$B$134,IF(F47="čtvrtletně",Q47*G47*4*$B$135,IF(F47="ročně",Q47*G47*$B$135,G47*Q47*$B$135)))))*'Základní údaje'!$H$13*IF(K47=1,'Základní údaje'!$C$12,1) -> 0
A48: emailové nátěry - patro chodba téčko | B48: 72 | D48: 11 | E48: 792 | F48: čtvrtletně | G48: 2 | J48: 1 | K48: 0 | L48: umýt | M48: 12 | O48: 2.2 | P48: 0 | Q48: 0 | R48: =IF(F48="denně",Q48*G48*$B$132,IF(F48="týdně",Q48*G48*$B$133,IF(F48="měsíčně",Q48*G48*$B$134,IF(F48="čtvrtletně",Q48*G48*4*$B$135,IF(F48="ročně",Q48*G48*$B$135,G48*Q48*$B$135)))))*'Základní údaje'!$H$13*IF(K48=1,'Základní údaje'!$C$12,1) -> 0
A49: emailové nátěry - chodba 1PP | B49: 138 | D49: 1 | E49: 138 | F49: čtvrtletně | G49: 2 | J49: 1 | K49: 0 | L49: umýt | M49: 23 | O49: 0.3833333333 | P49: 0 | Q49: 0 | R49: =IF(F49="denně",Q49*G49*$B$132,IF(F49="týdně",Q49*G49*$B$133,IF(F49="měsíčně",Q49*G49*$B$134,IF(F49="čtvrtletně",Q49*G49*4*$B$135,IF(F49="ročně",Q49*G49*$B$135,G49*Q49*$B$135)))))*'Základní údaje'!$H$13*IF(K49=1,'Základní údaje'!$C$12,1) -> 0
A50: emailové nátěry - chodba 2PP | B50: 36 | D50: 1 | E50: 36 | F50: čtvrtletně | G50: 2 | J50: 1 | K50: 0 | L50: umýt | M50: 6 | O50: 0.1 | P50: 0 | Q50: 0 | R50: =IF(F50="denně",Q50*G50*$B$132,IF(F50="týdně",Q50*G50*$B$133,IF(F50="měsíčně",Q50*G50*$B$134,IF(F50="čtvrtletně",Q50*G50*4*$B$135,IF(F50="ročně",Q50*G50*$B$135,G50*Q50*$B$135)))))*'Základní údaje'!$H$13*IF(K50=1,'Základní údaje'!$C$12,1) -> 0
A51: prázdninový sklad + balkon ( 6m2) | B51: 39 | D51: 1 | E51: 39 | F51: ročně | G51: 1 | J51: 1 | K51: 0 | L51: Typová činnost č.: 2 a 3 | M51: 10 | O51: 0.1666666667 | P51: 0 | Q51: 0 | R51: =IF(F51="denně",Q51*G51*$B$132,IF(F51="týdně",Q51*G51*$B$133,IF(F51="měsíčně",Q51*G51*$B$134,IF(F51="čtvrtletně",Q51*G51*4*$B$135,IF(F51="ročně",Q51*G51*$B$135,G51*Q51*$B$135)))))*'Základní údaje'!$H$13*IF(K51=1,'Základní údaje'!$C$12,1) -> 0
A52: kolárna | B52: 22.5 | D52: 1 | E52: 22.5 | F52: ročně | G52: 2 | J52: 1 | K52: 0 | L52: Typová činnost č.: 3 | M52: 6 | O52: 0.1 | P52: 0 | Q52: 0 | R52: =IF(F52="denně",Q52*G52*$B$132,IF(F52="týdně",Q52*G52*$B$133,IF(F52="měsíčně",Q52*G52*$B$134,IF(F52="čtvrtletně",Q52*G52*4*$B$135,IF(F52="ročně",Q52*G52*$B$135,G52*Q52*$B$135)))))*'Základní údaje'!$H$13*IF(K52=1,'Základní údaje'!$C$12,1) -> 0
A53: Okna velká | C53: 1 | D53: 779 | E53: 779 | F53: ročně | G53: 1 | J53: 1 | K53: 0 | L53: umýt skla, rámy, parapety; vyleštit skla | M53: 20 | O53: 259.6666667 | P53: 0 | Q53: 0 | R53: =IF(F53="denně",Q53*G53*$B$132,IF(F53="týdně",Q53*G53*$B$133,IF(F53="měsíčně",Q53*G53*$B$134,IF(F53="čtvrtletně",Q53*G53*4*$B$135,IF(F53="ročně",Q53*G53*$B$135,G53*Q53*$B$135)))))*'Základní údaje'!$H$13*IF(K53=1,'Základní údaje'!$C$12,1) -> 0
A54: Okna malá | C54: 1 | D54: 357 | E54: =B54*D54+C54*D54 -> 357 | F54: ročně | G54: 1 | J54: 1 | K54: 0 | L54: umýt skla, rámy, parapety; vyleštit skla | M54: 15 | O54: =IF(N54=0,M54*D54/60,N54*D54/60) -> 89.25 | P54: =ROUND(IF(N54=0,M54/60*$B$2,N54/60*$B$2),0) -> 0 | Q54: =P54*D54 -> 0 | R54: =IF(F54="denně",Q54*G54*$B$132,IF(F54="týdně",Q54*G54*$B$133,IF(F54="měsíčně",Q54*G54*$B$134,IF(F54="čtvrtletně",Q54*G54*4*$B$135,IF(F54="ročně",Q54*G54*$B$135,G54*Q54*$B$135)))))*'Základní údaje'!$H$13*IF(K54=1,'Základní údaje'!$C$12,1) -> 0
A55: Okna - balkonové dveře | C55: 1 | D55: 253 | E55: 253 | F55: ročně | G55: 1 | J55: 1 | K55: 0 | L55: umýt skla, rámy, parapety; vyleštit skla | M55: 25 | O55: 105.4166667 | P55: 0 | Q55: 0 | R55: =IF(F55="denně",Q55*G55*$B$132,IF(F55="týdně",Q55*G55*$B$133,IF(F55="měsíčně",Q55*G55*$B$134,IF(F55="čtvrtletně",Q55*G55*4*$B$135,IF(F55="ročně",Q55*G55*$B$135,G55*Q55*$B$135)))))*'Základní údaje'!$H$13*IF(K55=1,'Základní údaje'!$C$12,1) -> 0
A56: přebrání pokoje po ubytovaných | C56: 1 | D56: 520 | E56: 520 | F56: sezonně | G56: 1 | H56: 25 | I56: 27 | J56: 1 | K56: 0 | L56: Typová činnost č.: 10 | M56: 8 | O56: 69.33333333 | P56: 0 | Q56: 0 | R56: =IF(F56="denně",Q56*G56*$B$132,IF(F56="týdně",Q56*G56*$B$133,IF(F56="měsíčně",Q56*G56*$B$134,IF(F56="čtvrtletně",Q56*G56*4*$B$135,IF(F56="ročně",Q56*G56*$B$135,G56*Q56*$B$135)))))*'Základní údaje'!$H$13*IF(K56=1,'Základní údaje'!$C$12,1) -> 0
A57: buňka pro ZTP studenty: kuchyňka | B57: 15 | D57: 2 | E57: 30 | F57: sezonně | G57: 1 | H57: 25 | I57: 27 | J57: 1 | K57: 1 | L57: Typová činnost č.: 5 | M57: 25 | O57: 0.8333333333 | P57: 0 | Q57: 0 | R57: =IF(F57="denně",Q57*G57*$B$132,IF(F57="týdně",Q57*G57*$B$133,IF(F57="měsíčně",Q57*G57*$B$134,IF(F57="čtvrtletně",Q57*G57*4*$B$135,IF(F57="ročně",Q57*G57*$B$135,G57*Q57*$B$135)))))*'Základní údaje'!$H$13*IF(K57=1,'Základní údaje'!$C$12,1) -> 0
A58: buňka pro ZTP studenty: vstupní prostory | B58: 12 | D58: 1 | E58: 12 | F58: sezonně | G58: 1 | H58: 25 | I58: 27 | J58: 1 | K58: 1 | L58: Typová činnost č.: 1 | M58: 5 | O58: 0.08333333333 | P58: 0 | Q58: 0 | R58: =IF(F58="denně",Q58*G58*$B$132,IF(F58="týdně",Q58*G58*$B$133,IF(F58="měsíčně",Q58*G58*$B$134,IF(F58="čtvrtletně",Q58*G58*4*$B$135,IF(F58="ročně",Q58*G58*$B$135,G58*Q58*$B$135)))))*'Základní údaje'!$H$13*IF(K58=1,'Základní údaje'!$C$12,1) -> 0
A59: buňka pro ZTP studenty: sociální zařízení | B59: 6 | D59: 1 | E59: 6 | F59: sezonně | G59: 1 | H59: 25 | I59: 27 | J59: 1 | K59: 1 | L59: Typová činnost č.: 11 a 12 | M59: 20 | O59: 0.3333333333 | P59: 0 | Q59: 0 | R59: =IF(F59="denně",Q59*G59*$B$132,IF(F59="týdně",Q59*G59*$B$133,IF(F59="měsíčně",Q59*G59*$B$134,IF(F59="čtvrtletně",Q59*G59*4*$B$135,IF(F59="ročně",Q59*G59*$B$135,G59*Q59*$B$135)))))*'Základní údaje'!$H$13*IF(K59=1,'Základní údaje'!$C$12,1) -> 0
A60: buňka pro ZTP studenty: pokoj | B60: 13 | D60: 4 | E60: 52 | F60: sezonně | G60: 1 | H60: 25 | I60: 27 | J60: 1 | K60: 1 | L60: Typová činnost č.: 6 | M60: 20 | O60: 1.333333333 | P60: 0 | Q60: 0 | R60: =IF(F60="denně",Q60*G60*$B$132,IF(F60="týdně",Q60*G60*$B$133,IF(F60="měsíčně",Q60*G60*$B$134,IF(F60="čtvrtletně",Q60*G60*4*$B$135,IF(F60="ročně",Q60*G60*$B$135,G60*Q60*$B$135)))))*'Základní údaje'!$H$13*IF(K60=1,'Základní údaje'!$C$12,1) -> 0
A61: buňka pro ZTP studenty: kuchyňka | B61: 15 | D61: 2 | E61: =B61*D61+C61*D61 -> 30 | F61: sezonně | G61: 1 | H61: 35 | I61: 37 | J61: 1 | K61: 1 | L61: Typová činnost č.: 5 | M61: 25 | O61: =IF(N61=0,M61*D61/60,N61*D61/60) -> 0.8333333333 | P61: =ROUND(IF(N61=0,M61/60*$B$2,N61/60*$B$2),0) -> 0 | Q61: =P61*D61 -> 0 | R61: =IF(F61="denně",Q61*G61*$B$132,IF(F61="týdně",Q61*G61*$B$133,IF(F61="měsíčně",Q61*G61*$B$134,IF(F61="čtvrtletně",Q61*G61*4*$B$135,IF(F61="ročně",Q61*G61*$B$135,G61*Q61*$B$135)))))*'Základní údaje'!$H$13*IF(K61=1,'Základní údaje'!$C$12,1) -> 0
A62: buňka pro ZTP studenty: vstupní prostory | B62: 12 | D62: 1 | E62: 12 | F62: sezonně | G62: 1 | H62: 35 | I62: 37 | J62: 1 | K62: 1 | L62: Typová činnost č.: 1 | M62: 5 | O62: 0.08333333333 | P62: 0 | Q62: 0 | R62: =IF(F62="denně",Q62*G62*$B$132,IF(F62="týdně",Q62*G62*$B$133,IF(F62="měsíčně",Q62*G62*$B$134,IF(F62="čtvrtletně",Q62*G62*4*$B$135,IF(F62="ročně",Q62*G62*$B$135,G62*Q62*$B$135)))))*'Základní údaje'!$H$13*IF(K62=1,'Základní údaje'!$C$12,1) -> 0
A63: buňka pro ZTP studenty: sociální zařízení | B63: 6 | D63: 1 | E63: 6 | F63: sezonně | G63: 1 | H63: 35 | I63: 37 | J63: 1 | K63: 1 | L63: Typová činnost č.: 11 a 12 | M63: 20 | O63: 0.3333333333 | P63: 0 | Q63: 0 | R63: =IF(F63="denně",Q63*G63*$B$132,IF(F63="týdně",Q63*G63*$B$133,IF(F63="měsíčně",Q63*G63*$B$134,IF(F63="čtvrtletně",Q63*G63*4*$B$135,IF(F63="ročně",Q63*G63*$B$135,G63*Q63*$B$135)))))*'Základní údaje'!$H$13*IF(K63=1,'Základní údaje'!$C$12,1) -> 0
A64: buňka pro ZTP studenty: pokoj | B64: 13 | D64: 4 | E64: 52 | F64: sezonně | G64: 1 | H64: 35 | I64: 37 | J64: 1 | K64: 1 | L64: Typová činnost č.: 6 | M64: 20 | O64: 1.333333333 | P64: 0 | Q64: 0 | R64: =IF(F64="denně",Q64*G64*$B$132,IF(F64="týdně",Q64*G64*$B$133,IF(F64="měsíčně",Q64*G64*$B$134,IF(F64="čtvrtletně",Q64*G64*4*$B$135,IF(F64="ročně",Q64*G64*$B$135,G64*Q64*$B$135)))))*'Základní údaje'!$H$13*IF(K64=1,'Základní údaje'!$C$12,1) -> 0
A65: buňka pro ZTP studenty: kuchyňka | B65: 15 | D65: 2 | E65: 30 | F65: sezonně | G65: 1 | H65: 6 | I65: 17 | J65: 1 | K65: 0 | L65: Typová činnost č.: 5 | M65: 25 | O65: 0.8333333333 | P65: 0 | Q65: 0 | R65: =IF(F65="denně",Q65*G65*$B$132,IF(F65="týdně",Q65*G65*$B$133,IF(F65="měsíčně",Q65*G65*$B$134,IF(F65="čtvrtletně",Q65*G65*4*$B$135,IF(F65="ročně",Q65*G65*$B$135,G65*Q65*$B$135)))))*'Základní údaje'!$H$13*IF(K65=1,'Základní údaje'!$C$12,1) -> 0
A66: buňka pro ZTP studenty: vstupní prostory | B66: 12 | D66: 1 | E66: 12 | F66: sezonně | G66: 1 | H66: 6 | I66: 17 | J66: 1 | K66: 0 | L66: Typová činnost č.: 1 | M66: 5 | O66: 0.08333333333 | P66: 0 | Q66: 0 | R66: =IF(F66="denně",Q66*G66*$B$132,IF(F66="týdně",Q66*G66*$B$133,IF(F66="měsíčně",Q66*G66*$B$134,IF(F66="čtvrtletně",Q66*G66*4*$B$135,IF(F66="ročně",Q66*G66*$B$135,G66*Q66*$B$135)))))*'Základní údaje'!$H$13*IF(K66=1,'Základní údaje'!$C$12,1) -> 0
A67: buňka pro ZTP studenty: sociální zařízení | B67: 6 | D67: 1 | E67: 6 | F67: sezonně | G67: 1 | H67: 6 | I67: 17 | J67: 1 | K67: 0 | L67: Typová činnost č.: 11 a 12 | M67: 20 | O67: 0.3333333333 | P67: 0 | Q67: 0 | R67: =IF(F67="denně",Q67*G67*$B$132,IF(F67="týdně",Q67*G67*$B$133,IF(F67="měsíčně",Q67*G67*$B$134,IF(F67="čtvrtletně",Q67*G67*4*$B$135,IF(F67="ročně",Q67*G67*$B$135,G67*Q67*$B$135)))))*'Základní údaje'!$H$13*IF(K67=1,'Základní údaje'!$C$12,1) -> 0
A68: buňka pro ZTP studenty: kuchyňka | B68: 15 | D68: 2 | E68: 30 | F68: sezonně | G68: 1 | H68: 40 | I68: 51 | J68: 1 | K68: 0 | L68: Typová činnost č.: 5 | M68: 25 | O68: 0.8333333333 | P68: 0 | Q68: 0 | R68: =IF(F68="denně",Q68*G68*$B$132,IF(F68="týdně",Q68*G68*$B$133,IF(F68="měsíčně",Q68*G68*$B$134,IF(F68="čtvrtletně",Q68*G68*4*$B$135,IF(F68="ročně",Q68*G68*$B$135,G68*Q68*$B$135)))))*'Základní údaje'!$H$13*IF(K68=1,'Základní údaje'!$C$12,1) -> 0
A69: buňka pro ZTP studenty: vstupní prostory | B69: 12 | D69: 1 | E69: 12 | F69: sezonně | G69: 1 | H69: 40 | I69: 51 | J69: 1 | K69: 0 | L69: Typová činnost č.: 1 | M69: 5 | O69: 0.08333333333 | P69: 0 | Q69: 0 | R69: =IF(F69="denně",Q69*G69*$B$132,IF(F69="týdně",Q69*G69*$B$133,IF(F69="měsíčně",Q69*G69*$B$134,IF(F69="čtvrtletně",Q69*G69*4*$B$135,IF(F69="ročně",Q69*G69*$B$135,G69*Q69*$B$135)))))*'Základní údaje'!$H$13*IF(K69=1,'Základní údaje'!$C$12,1) -> 0
A70: buňka pro ZTP studenty: sociální zařízení | B70: 6 | D70: 1 | E70: 6 | F70: sezonně | G70: 1 | H70: 40 | I70: 51 | J70: 1 | K70: 0 | L70: Typová činnost č.: 11 a 12 | M70: 20 | O70: 0.3333333333 | P70: 0 | Q70: 0 | R70: =IF(F70="denně",Q70*G70*$B$132,IF(F70="týdně",Q70*G70*$B$133,IF(F70="měsíčně",Q70*G70*$B$134,IF(F70="čtvrtletně",Q70*G70*4*$B$135,IF(F70="ročně",Q70*G70*$B$135,G70*Q70*$B$135)))))*'Základní údaje'!$H$13*IF(K70=1,'Základní údaje'!$C$12,1) -> 0
A71: buňka student (skladba 1 + 2): kuchyňka + vstupní prostory | B71: 15 | D71: 65 | E71: 975 | F71: sezonně | G71: 1 | H71: 25 | I71: 27 | J71: 1 | K71: 1 | L71: Typová činnost č.: 3 a 5 | M71: 25 | O71: 27.08333333 | P71: 0 | Q71: 0 | R71: =IF(F71="denně",Q71*G71*$B$132,IF(F71="týdně",Q71*G71*$B$133,IF(F71="měsíčně",Q71*G71*$B$134,IF(F71="čtvrtletně",Q71*G71*4*$B$135,IF(F71="ročně",Q71*G71*$B$135,G71*Q71*$B$135)))))*'Základní údaje'!$H$13*IF(K71=1,'Základní údaje'!$C$12,1) -> 0
A72: buňka student (skladba 1 + 2): komora | B72: 4.5 | D72: 65 | E72: 292.5 | F72: sezonně | G72: 1 | H72: 25 | I72: 27 | J72: 1 | K72: 1 | L72: Typová činnost č.: 3 | M72: 10 | O72: 10.83333333 | P72: 0 | Q72: 0 | R72: =IF(F72="denně",Q72*G72*$B$132,IF(F72="týdně",Q72*G72*$B$133,IF(F72="měsíčně",Q72*G72*$B$134,IF(F72="čtvrtletně",Q72*G72*4*$B$135,IF(F72="ročně",Q72*G72*$B$135,G72*Q72*$B$135)))))*'Základní údaje'!$H$13*IF(K72=1,'Základní údaje'!$C$12,1) -> 0
A73: buňka student (skladba 1 + 2): WC | B73: 1.8 | D73: 65 | E73: 117 | F73: sezonně | G73: 1 | H73: 25 | I73: 27 | J73: 1 | K73: 1 | L73: Typová činnost č.: 11 | M73: 10 | O73: 10.83333333 | P73: 0 | Q73: 0 | R73: =IF(F73="denně",Q73*G73*$B$132,IF(F73="týdně",Q73*G73*$B$133,IF(F73="měsíčně",Q73*G73*$B$134,IF(F73="čtvrtletně",Q73*G73*4*$B$135,IF(F73="ročně",Q73*G73*$B$135,G73*Q73*$B$135)))))*'Základní údaje'!$H$13*IF(K73=1,'Základní údaje'!$C$12,1) -> 0
A74: buňka student (skladba 1 + 2): koupelna se sprchou | B74: 2.3 | D74: 65 | E74: 149.5 | F74: sezonně | G74: 1 | H74: 25 | I74: 27 | J74: 1 | K74: 1 | L74: Typová činnost č.: 12 | M74: 15 | O74: 16.25 | P74: 0 | Q74: 0 | R74: =IF(F74="denně",Q74*G74*$B$132,IF(F74="týdně",Q74*G74*$B$133,IF(F74="měsíčně",Q74*G74*$B$134,IF(F74="čtvrtletně",Q74*G74*4*$B$135,IF(F74="ročně",Q74*G74*$B$135,G74*Q74*$B$135)))))*'Základní údaje'!$H$13*IF(K74=1,'Základní údaje'!$C$12,1) -> 0
A75: buňka student (skladba 1 + 2): jednolůžkový pokoj | B75: 14 | D75: 65 | E75: 910 | F75: sezonně | G75: 1 | H75: 25 | I75: 27 | J75: 1 | K75: 1 | L75: Typová činnost č.: 6 | M75: 20 | O75: 21.66666667 | P75: 0 | Q75: 0 | R75: =IF(F75="denně",Q75*G75*$B$132,IF(F75="týdně",Q75*G75*$B$133,IF(F75="měsíčně",Q75*G75*$B$134,IF(F75="čtvrtletně",Q75*G75*4*$B$135,IF(F75="ročně",Q75*G75*$B$135,G75*Q75*$B$135)))))*'Základní údaje'!$H$13*IF(K75=1,'Základní údaje'!$C$12,1) -> 0
A76: buňka student (skladba 1 + 2): dvoulůžkový pokoj | B76: 14 | D76: 65 | E76: 910 | F76: sezonně | G76: 1 | H76: 25 | I76: 27 | J76: 1 | K76: 1 | L76: Typová činnost č.: 6 | M76: 20 | O76: 21.66666667 | P76: 0 | Q76: 0 | R76: =IF(F76="denně",Q76*G76*$B$132,IF(F76="týdně",Q76*G76*$B$133,IF(F76="měsíčně",Q76*G76*$B$134,IF(F76="čtvrtletně",Q76*G76*4*$B$135,IF(F76="ročně",Q76*G76*$B$135,G76*Q76*$B$135)))))*'Základní údaje'!$H$13*IF(K76=1,'Základní údaje'!$C$12,1) -> 0
A77: buňka student (skladba 1 + 2): kuchyňka + vstupní prostory | B77: 15 | D77: 65 | E77: 975 | F77: sezonně | G77: 1 | H77: 35 | I77: 37 | J77: 1 | K77: 1 | L77: Typová činnost č.: 3 a 5 | M77: 25 | O77: 27.08333333 | P77: 0 | Q77: 0 | R77: =IF(F77="denně",Q77*G77*$B$132,IF(F77="týdně",Q77*G77*$B$133,IF(F77="měsíčně",Q77*G77*$B$134,IF(F77="čtvrtletně",Q77*G77*4*$B$135,IF(F77="ročně",Q77*G77*$B$135,G77*Q77*$B$135)))))*'Základní údaje'!$H$13*IF(K77=1,'Základní údaje'!$C$12,1) -> 0
A78: buňka student (skladba 1 + 2): komora | B78: 4.5 | D78: 65 | E78: 292.5 | F78: sezonně | G78: 1 | H78: 35 | I78: 37 | J78: 1 | K78: 1 | L78: Typová činnost č.: 3 | M78: 10 | O78: 10.83333333 | P78: 0 | Q78: 0 | R78: =IF(F78="denně",Q78*G78*$B$132,IF(F78="týdně",Q78*G78*$B$133,IF(F78="měsíčně",Q78*G78*$B$134,IF(F78="čtvrtletně",Q78*G78*4*$B$135,IF(F78="ročně",Q78*G78*$B$135,G78*Q78*$B$135)))))*'Základní údaje'!$H$13*IF(K78=1,'Základní údaje'!$C$12,1) -> 0
A79: buňka student (skladba 1 + 2): WC | B79: 1.8 | D79: 65 | E79: 117 | F79: sezonně | G79: 1 | H79: 35 | I79: 37 | J79: 1 | K79: 1 | L79: Typová činnost č.: 11 | M79: 10 | O79: 10.83333333 | P79: 0 | Q79: 0 | R79: =IF(F79="denně",Q79*G79*$B$132,IF(F79="týdně",Q79*G79*$B$133,IF(F79="měsíčně",Q79*G79*$B$134,IF(F79="čtvrtletně",Q79*G79*4*$B$135,IF(F79="ročně",Q79*G79*$B$135,G79*Q79*$B$135)))))*'Základní údaje'!$H$13*IF(K79=1,'Základní údaje'!$C$12,1) -> 0
A80: buňka student (skladba 1 + 2): koupelna se sprchou | B80: 2.3 | D80: 65 | E80: 149.5 | F80: sezonně | G80: 1 | H80: 35 | I80: 37 | J80: 1 | K80: 1 | L80: Typová činnost č.: 12 | M80: 15 | O80: 16.25 | P80: 0 | Q80: 0 | R80: =IF(F80="denně",Q80*G80*$B$132,IF(F80="týdně",Q80*G80*$B$133,IF(F80="měsíčně",Q80*G80*$B$134,IF(F80="čtvrtletně",Q80*G80*4*$B$135,IF(F80="ročně",Q80*G80*$B$135,G80*Q80*$B$135)))))*'Základní údaje'!$H$13*IF(K80=1,'Základní údaje'!$C$12,1) -> 0
A81: buňka student (skladba 1 + 2): jednolůžkový pokoj | B81: 14 | D81: 65 | E81: 910 | F81: sezonně | G81: 1 | H81: 35 | I81: 37 | J81: 1 | K81: 1 | L81: Typová činnost č.: 6 | M81: 20 | O81: 21.66666667 | P81: 0 | Q81: 0 | R81: =IF(F81="denně",Q81*G81*$B$132,IF(F81="týdně",Q81*G81*$B$133,IF(F81="měsíčně",Q81*G81*$B$134,IF(F81="čtvrtletně",Q81*G81*4*$B$135,IF(F81="ročně",Q81*G81*$B$135,G81*Q81*$B$135)))))*'Základní údaje'!$H$13*IF(K81=1,'Základní údaje'!$C$12,1) -> 0
A82: buňka student (skladba 1 + 2): dvoulůžkový pokoj | B82: 14 | D82: 65 | E82: 910 | F82: sezonně | G82: 1 | H82: 35 | I82: 37 | J82: 1 | K82: 1 | L82: Typová činnost č.: 6 | M82: 20 | O82: 21.66666667 | P82: 0 | Q82: 0 | R82: =IF(F82="denně",Q82*G82*$B$132,IF(F82="týdně",Q82*G82*$B$133,IF(F82="měsíčně",Q82*G82*$B$134,IF(F82="čtvrtletně",Q82*G82*4*$B$135,IF(F82="ročně",Q82*G82*$B$135,G82*Q82*$B$135)))))*'Základní údaje'!$H$13*IF(K82=1,'Základní údaje'!$C$12,1) -> 0
A83: buňka student (skladba 1 + 2): kuchyňka + vstupní prostory | B83: 15 | D83: 65 | E83: 975 | F83: sezonně | G83: 1 | H83: 6 | I83: 17 | J83: 1 | K83: 0 | L83: Typová činnost č.: 3 a 5 | M83: 25 | O83: 27.08333333 | P83: 0 | Q83: 0 | R83: =IF(F83="denně",Q83*G83*$B$132,IF(F83="týdně",Q83*G83*$B$133,IF(F83="měsíčně",Q83*G83*$B$134,IF(F83="čtvrtletně",Q83*G83*4*$B$135,IF(F83="ročně",Q83*G83*$B$135,G83*Q83*$B$135)))))*'Základní údaje'!$H$13*IF(K83=1,'Základní údaje'!$C$12,1) -> 0
A84: buňka student (skladba 1 + 2): komora | B84: 4.5 | D84: 65 | E84: 292.5 | F84: sezonně | G84: 1 | H84: 6 | I84: 17 | J84: 1 | K84: 0 | L84: Typová činnost č.: 3 | M84: 10 | O84: 10.83333333 | P84: 0 | Q84: 0 | R84: =IF(F84="denně",Q84*G84*$B$132,IF(F84="týdně",Q84*G84*$B$133,IF(F84="měsíčně",Q84*G84*$B$134,IF(F84="čtvrtletně",Q84*G84*4*$B$135,IF(F84="ročně",Q84*G84*$B$135,G84*Q84*$B$135)))))*'Základní údaje'!$H$13*IF(K84=1,'Základní údaje'!$C$12,1) -> 0
A85: buňka student (skladba 1 + 2): WC | B85: 1.8 | D85: 65 | E85: 117 | F85: sezonně | G85: 1 | H85: 6 | I85: 17 | J85: 1 | K85: 0 | L85: Typová činnost č.: 11 | M85: 10 | O85: 10.83333333 | P85: 0 | Q85: 0 | R85: =IF(F85="denně",Q85*G85*$B$132,IF(F85="týdně",Q85*G85*$B$133,IF(F85="měsíčně",Q85*G85*$B$134,IF(F85="čtvrtletně",Q85*G85*4*$B$135,IF(F85="ročně",Q85*G85*$B$135,G85*Q85*$B$135)))))*'Základní údaje'!$H$13*IF(K85=1,'Základní údaje'!$C$12,1) -> 0
A86: buňka student (skladba 1 + 2): koupelna se sprchou | B86: 2.3 | D86: 65 | E86: 149.5 | F86: sezonně | G86: 1 | H86: 6 | I86: 17 | J86: 1 | K86: 0 | L86: Typová činnost č.: 12 | M86: 15 | O86: 16.25 | P86: 0 | Q86: 0 | R86: =IF(F86="denně",Q86*G86*$B$132,IF(F86="týdně",Q86*G86*$B$133,IF(F86="měsíčně",Q86*G86*$B$134,IF(F86="čtvrtletně",Q86*G86*4*$B$135,IF(F86="ročně",Q86*G86*$B$135,G86*Q86*$B$135)))))*'Základní údaje'!$H$13*IF(K86=1,'Základní údaje'!$C$12,1) -> 0
A87: buňka student (skladba 1 + 2): kuchyňka + vstupní prostory | B87: 15 | D87: 65 | E87: 975 | F87: sezonně | G87: 1 | H87: 40 | I87: 51 | J87: 1 | K87: 0 | L87: Typová činnost č.: 3 a 5 | M87: 25 | O87: 27.08333333 | P87: 0 | Q87: 0 | R87: =IF(F87="denně",Q87*G87*$B$132,IF(F87="týdně",Q87*G87*$B$133,IF(F87="měsíčně",Q87*G87*$B$134,IF(F87="čtvrtletně",Q87*G87*4*$B$135,IF(F87="ročně",Q87*G87*$B$135,G87*Q87*$B$135)))))*'Základní údaje'!$H$13*IF(K87=1,'Základní údaje'!$C$12,1) -> 0
A88: buňka student (skladba 1 + 2): komora | B88: 4.5 | D88: 65 | E88: 292.5 | F88: sezonně | G88: 1 | H88: 40 | I88: 51 | J88: 1 | K88: 0 | L88: Typová činnost č.: 3 | M88: 10 | O88: 10.83333333 | P88: 0 | Q88: 0 | R88: =IF(F88="denně",Q88*G88*$B$132,IF(F88="týdně",Q88*G88*$B$133,IF(F88="měsíčně",Q88*G88*$B$134,IF(F88="čtvrtletně",Q88*G88*4*$B$135,IF(F88="ročně",Q88*G88*$B$135,G88*Q88*$B$135)))))*'Základní údaje'!$H$13*IF(K88=1,'Základní údaje'!$C$12,1) -> 0
A89: buňka student (skladba 1 + 2): WC | B89: 1.8 | D89: 65 | E89: 117 | F89: sezonně | G89: 1 | H89: 40 | I89: 51 | J89: 1 | K89: 0 | L89: Typová činnost č.: 11 | M89: 10 | O89: 10.83333333 | P89: 0 | Q89: 0 | R89: =IF(F89="denně",Q89*G89*$B$132,IF(F89="týdně",Q89*G89*$B$133,IF(F89="měsíčně",Q89*G89*$B$134,IF(F89="čtvrtletně",Q89*G89*4*$B$135,IF(F89="ročně",Q89*G89*$B$135,G89*Q89*$B$135)))))*'Základní údaje'!$H$13*IF(K89=1,'Základní údaje'!$C$12,1) -> 0
A90: buňka student (skladba 1 + 2): koupelna se sprchou | B90: 2.3 | D90: 65 | E90: 149.5 | F90: sezonně | G90: 1 | H90: 40 | I90: 51 | J90: 1 | K90: 0 | L90: Typová činnost č.: 12 | M90: 15 | O90: 16.25 | P90: 0 | Q90: 0 | R90: =IF(F90="denně",Q90*G90*$B$132,IF(F90="týdně",Q90*G90*$B$133,IF(F90="měsíčně",Q90*G90*$B$134,IF(F90="čtvrtletně",Q90*G90*4*$B$135,IF(F90="ročně",Q90*G90*$B$135,G90*Q90*$B$135)))))*'Základní údaje'!$H$13*IF(K90=1,'Základní údaje'!$C$12,1) -> 0
A91: buňka student (skladba 2+ 2): kuchyňka + vstupní prostory | B91: 15 | D91: 94 | E91: 1410 | F91: sezonně | G91: 1 | H91: 25 | I91: 27 | J91: 1 | K91: 1 | L91: Typová činnost č.: 3 a 5 | M91: 25 | O91: 39.16666667 | P91: 0 | Q91: 0 | R91: =IF(F91="denně",Q91*G91*$B$132,IF(F91="týdně",Q91*G91*$B$133,IF(F91="měsíčně",Q91*G91*$B$134,IF(F91="čtvrtletně",Q91*G91*4*$B$135,IF(F91="ročně",Q91*G91*$B$135,G91*Q91*$B$135)))))*'Základní údaje'!$H$13*IF(K91=1,'Základní údaje'!$C$12,1) -> 0
A92: buňka student (skladba 2+ 2): komora | B92: 4.5 | D92: 94 | E92: 423 | F92: sezonně | G92: 1 | H92: 25 | I92: 27 | J92: 1 | K92: 1 | L92: Typová činnost č.: 3 | M92: 10 | O92: 15.66666667 | P92: 0 | Q92: 0 | R92: =IF(F92="denně",Q92*G92*$B$132,IF(F92="týdně",Q92*G92*$B$133,IF(F92="měsíčně",Q92*G92*$B$134,IF(F92="čtvrtletně",Q92*G92*4*$B$135,IF(F92="ročně",Q92*G92*$B$135,G92*Q92*$B$135)))))*'Základní údaje'!$H$13*IF(K92=1,'Základní údaje'!$C$12,1) -> 0
A93: buňka student (skladba 2+ 2): WC | B93: 1.8 | D93: 94 | E93: =B93*D93+C93*D93 -> 169.2 | F93: sezonně | G93: 1 | H93: 25 | I93: 27 | J93: 1 | K93: 1 | L93: Typová činnost č.: 11 | M93: 10 | O93: =IF(N93=0,M93*D93/60,N93*D93/60) -> 15.66666667 | P93: =ROUND(IF(N93=0,M93/60*$B$2,N93/60*$B$2),0) -> 0 | Q93: =P93*D93 -> 0 | R93: =IF(F93="denně",Q93*G93*$B$132,IF(F93="týdně",Q93*G93*$B$133,IF(F93="měsíčně",Q93*G93*$B$134,IF(F93="čtvrtletně",Q93*G93*4*$B$135,IF(F93="ročně",Q93*G93*$B$135,G93*Q93*$B$135)))))*'Základní údaje'!$H$13*IF(K93=1,'Základní údaje'!$C$12,1) -> 0
A94: buňka student (skladba 2+ 2): koupelna se sprchou | B94: 2.3 | D94: 94 | E94: 216.2 | F94: sezonně | G94: 1 | H94: 25 | I94: 27 | J94: 1 | K94: 1 | L94: Typová činnost č.: 12 | M94: 15 | O94: 23.5 | P94: 0 | Q94: 0 | R94: =IF(F94="denně",Q94*G94*$B$132,IF(F94="týdně",Q94*G94*$B$133,IF(F94="měsíčně",Q94*G94*$B$134,IF(F94="čtvrtletně",Q94*G94*4*$B$135,IF(F94="ročně",Q94*G94*$B$135,G94*Q94*$B$135)))))*'Základní údaje'!$H$13*IF(K94=1,'Základní údaje'!$C$12,1) -> 0
A95: buňka student (skladba 2+ 2): pokoj | B95: 14 | D95: 188 | E95: 2632 | F95: sezonně | G95: 1 | H95: 25 | I95: 27 | J95: 1 | K95: 1 | L95: Typová činnost č.: 6 | M95: 20 | O95: 62.66666667 | P95: 0 | Q95: 0 | R95: =IF(F95="denně",Q95*G95*$B$132,IF(F95="týdně",Q95*G95*$B$133,IF(F95="měsíčně",Q95*G95*$B$134,IF(F95="čtvrtletně",Q95*G95*4*$B$135,IF(F95="ročně",Q95*G95*$B$135,G95*Q95*$B$135)))))*'Základní údaje'!$H$13*IF(K95=1,'Základní údaje'!$C$12,1) -> 0
A96: buňka student (skladba 2+ 2): kuchyňka + vstupní prostory | B96: 15 | D96: 94 | E96: 1410 | F96: sezonně | G96: 1 | H96: 35 | I96: 27 | J96: 1 | K96: 1 | L96: Typová činnost č.: 3 a 5 | M96: 25 | O96: 39.16666667 | P96: 0 | Q96: 0 | R96: =IF(F96="denně",Q96*G96*$B$132,IF(F96="týdně",Q96*G96*$B$133,IF(F96="měsíčně",Q96*G96*$B$134,IF(F96="čtvrtletně",Q96*G96*4*$B$135,IF(F96="ročně",Q96*G96*$B$135,G96*Q96*$B$135)))))*'Základní údaje'!$H$13*IF(K96=1,'Základní údaje'!$C$12,1) -> 0
A97: buňka student (skladba 2+ 2): komora | B97: 4.5 | D97: 94 | E97: 423 | F97: sezonně | G97: 1 | H97: 35 | I97: 37 | J97: 1 | K97: 1 | L97: Typová činnost č.: 3 | M97: 10 | O97: 15.66666667 | P97: 0 | Q97: 0 | R97: =IF(F97="denně",Q97*G97*$B$132,IF(F97="týdně",Q97*G97*$B$133,IF(F97="měsíčně",Q97*G97*$B$134,IF(F97="čtvrtletně",Q97*G97*4*$B$135,IF(F97="ročně",Q97*G97*$B$135,G97*Q97*$B$135)))))*'Základní údaje'!$H$13*IF(K97=1,'Základní údaje'!$C$12,1) -> 0
A98: buňka student (skladba 2+ 2): WC | B98: 1.8 | D98: 94 | E98: 169.2 | F98: sezonně | G98: 1 | H98: 35 | I98: 37 | J98: 1 | K98: 1 | L98: Typová činnost č.: 11 | M98: 10 | O98: 15.66666667 | P98: 0 | Q98: 0 | R98: =IF(F98="denně",Q98*G98*$B$132,IF(F98="týdně",Q98*G98*$B$133,IF(F98="měsíčně",Q98*G98*$B$134,IF(F98="čtvrtletně",Q98*G98*4*$B$135,IF(F98="ročně",Q98*G98*$B$135,G98*Q98*$B$135)))))*'Základní údaje'!$H$13*IF(K98=1,'Základní údaje'!$C$12,1) -> 0
A99: buňka student (skladba 2+ 2): koupelna se sprchou | B99: 2.3 | D99: 94 | E99: 216.2 | F99: sezonně | G99: 1 | H99: 35 | I99: 37 | J99: 1 | K99: 1 | L99: Typová činnost č.: 12 | M99: 15 | O99: 23.5 | P99: 0 | Q99: 0 | R99: =IF(F99="denně",Q99*G99*$B$132,IF(F99="týdně",Q99*G99*$B$133,IF(F99="měsíčně",Q99*G99*$B$134,IF(F99="čtvrtletně",Q99*G99*4*$B$135,IF(F99="ročně",Q99*G99*$B$135,G99*Q99*$B$135)))))*'Základní údaje'!$H$13*IF(K99=1,'Základní údaje'!$C$12,1) -> 0
A100: buňka student (skladba 2+ 2): pokoj | B100: 14 | D100: 188 | E100: 2632 | F100: sezonně | G100: 1 | H100: 35 | I100: 37 | J100: 1 | K100: 1 | L100: Typová činnost č.: 6 | M100: 20 | O100: 62.66666667 | P100: 0 | Q100: 0 | R100: =IF(F100="denně",Q100*G100*$B$132,IF(F100="týdně",Q100*G100*$B$133,IF(F100="měsíčně",Q100*G100*$B$134,IF(F100="čtvrtletně",Q100*G100*4*$B$135,IF(F100="ročně",Q100*G100*$B$135,G100*Q100*$B$135)))))*'Základní údaje'!$H$13*IF(K100=1,'Základní údaje'!$C$12,1) -> 0
A101: buňka student (skladba 2+ 2): kuchyňka + vstupní prostory | B101: 15 | D101: 94 | E101: 1410 | F101: sezonně | G101: 1 | H101: 6 | I101: 17 | J101: 1 | K101: 0 | L101: Typová činnost č.: 3 a 5 | M101: 25 | O101: 39.16666667 | P101: 0 | Q101: 0 | R101: =IF(F101="denně",Q101*G101*$B$132,IF(F101="týdně",Q101*G101*$B$133,IF(F101="měsíčně",Q101*G101*$B$134,IF(F101="čtvrtletně",Q101*G101*4*$B$135,IF(F101="ročně",Q101*G101*$B$135,G101*Q101*$B$135)))))*'Základní údaje'!$H$13*IF(K101=1,'Základní údaje'!$C$12,1) -> 0
A102: buňka student (skladba 2+ 2): komora | B102: 4.5 | D102: 94 | E102: 423 | F102: sezonně | G102: 1 | H102: 6 | I102: 17 | J102: 1 | K102: 0 | L102: Typová činnost č.: 3 | M102: 10 | O102: 15.66666667 | P102: 0 | Q102: 0 | R102: =IF(F102="denně",Q102*G102*$B$132,IF(F102="týdně",Q102*G102*$B$133,IF(F102="měsíčně",Q102*G102*$B$134,IF(F102="čtvrtletně",Q102*G102*4*$B$135,IF(F102="ročně",Q102*G102*$B$135,G102*Q102*$B$135)))))*'Základní údaje'!$H$13*IF(K102=1,'Základní údaje'!$C$12,1) -> 0
A103: buňka student (skladba 2+ 2): WC | B103: 1.8 | D103: 94 | E103: 169.2 | F103: sezonně | G103: 1 | H103: 6 | I103: 17 | J103: 1 | K103: 0 | L103: Typová činnost č.: 11 | M103: 10 | O103: 15.66666667 | P103: 0 | Q103: 0 | R103: =IF(F103="denně",Q103*G103*$B$132,IF(F103="týdně",Q103*G103*$B$133,IF(F103="měsíčně",Q103*G103*$B$134,IF(F103="čtvrtletně",Q103*G103*4*$B$135,IF(F103="ročně",Q103*G103*$B$135,G103*Q103*$B$135)))))*'Základní údaje'!$H$13*IF(K103=1,'Základní údaje'!$C$12,1) -> 0
A104: buňka student (skladba 2+ 2): koupelna se sprchou | B104: 2.3 | D104: 94 | E104: 216.2 | F104: sezonně | G104: 1 | H104: 6 | I104: 17 | J104: 1 | K104: 0 | L104: Typová činnost č.: 12 | M104: 15 | O104: 23.5 | P104: 0 | Q104: 0 | R104: =IF(F104="denně",Q104*G104*$B$132,IF(F104="týdně",Q104*G104*$B$133,IF(F104="měsíčně",Q104*G104*$B$134,IF(F104="čtvrtletně",Q104*G104*4*$B$135,IF(F104="ročně",Q104*G104*$B$135,G104*Q104*$B$135)))))*'Základní údaje'!$H$13*IF(K104=1,'Základní údaje'!$C$12,1) -> 0
A105: buňka student (skladba 2+ 2): kuchyňka + vstupní prostory | B105: 15 | D105: 94 | E105: 1410 | F105: sezonně | G105: 1 | H105: 40 | I105: 51 | J105: 1 | K105: 0 | L105: Typová činnost č.: 3 a 5 | M105: 25 | O105: 39.16666667 | P105: 0 | Q105: 0 | R105: =IF(F105="denně",Q105*G105*$B$132,IF(F105="týdně",Q105*G105*$B$133,IF(F105="měsíčně",Q105*G105*$B$134,IF(F105="čtvrtletně",Q105*G105*4*$B$135,IF(F105="ročně",Q105*G105*$B$135,G105*Q105*$B$135)))))*'Základní údaje'!$H$13*IF(K105=1,'Základní údaje'!$C$12,1) -> 0
A106: buňka student (skladba 2+ 2): komora | B106: 4.5 | D106: 94 | E106: 423 | F106: sezonně | G106: 1 | H106: 40 | I106: 51 | J106: 1 | K106: 0 | L106: Typová činnost č.: 3 | M106: 10 | O106: 15.66666667 | P106: 0 | Q106: 0 | R106: =IF(F106="denně",Q106*G106*$B$132,IF(F106="týdně",Q106*G106*$B$133,IF(F106="měsíčně",Q106*G106*$B$134,IF(F106="čtvrtletně",Q106*G106*4*$B$135,IF(F106="ročně",Q106*G106*$B$135,G106*Q106*$B$135)))))*'Základní údaje'!$H$13*IF(K106=1,'Základní údaje'!$C$12,1) -> 0
A107: buňka student (skladba 2+ 2): WC | B107: 1.8 | D107: 94 | E107: 169.2 | F107: sezonně | G107: 1 | H107: 40 | I107: 51 | J107: 1 | K107: 0 | L107: Typová činnost č.: 11 | M107: 10 | O107: 15.66666667 | P107: 0 | Q107: 0 | R107: =IF(F107="denně",Q107*G107*$B$132,IF(F107="týdně",Q107*G107*$B$133,IF(F107="měsíčně",Q107*G107*$B$134,IF(F107="čtvrtletně",Q107*G107*4*$B$135,IF(F107="ročně",Q107*G107*$B$135,G107*Q107*$B$135)))))*'Základní údaje'!$H$13*IF(K107=1,'Základní údaje'!$C$12,1) -> 0
A108: buňka student (skladba 2+ 2): koupelna se sprchou | B108: 2.3 | D108: 94 | E108: 216.2 | F108: sezonně | G108: 1 | H108: 40 | I108: 51 | J108: 1 | K108: 0 | L108: Typová činnost č.: 12 | M108: 15 | O108: 23.5 | P108: 0 | Q108: 0 | R108: =IF(F108="denně",Q108*G108*$B$132,IF(F108="týdně",Q108*G108*$B$133,IF(F108="měsíčně",Q108*G108*$B$134,IF(F108="čtvrtletně",Q108*G108*4*$B$135,IF(F108="ročně",Q108*G108*$B$135,G108*Q108*$B$135)))))*'Základní údaje'!$H$13*IF(K108=1,'Základní údaje'!$C$12,1) -> 0
A109: buňka student (skladba 2 + 2 s balkónem): kuchyňka + vstupní prostory | B109: 15 | D109: 99 | E109: 1485 | F109: sezonně | G109: 1 | H109: 25 | I109: 27 | J109: 1 | K109: 1 | L109: Typová činnost č.: 3 a 5 | M109: 25 | O109: 41.25 | P109: 0 | Q109: 0 | R109: =IF(F109="denně",Q109*G109*$B$132,IF(F109="týdně",Q109*G109*$B$133,IF(F109="měsíčně",Q109*G109*$B$134,IF(F109="čtvrtletně",Q109*G109*4*$B$135,IF(F109="ročně",Q109*G109*$B$135,G109*Q109*$B$135)))))*'Základní údaje'!$H$13*IF(K109=1,'Základní údaje'!$C$12,1) -> 0
A110: buňka student (skladba 2 + 2 s balkónem): komora | B110: 4.5 | D110: 99 | E110: 445.5 | F110: sezonně | G110: 1 | H110: 25 | I110: 27 | J110: 1 | K110: 1 | L110: Typová činnost č.: 3 | M110: 10 | O110: 16.5 | P110: 0 | Q110: 0 | R110: =IF(F110="denně",Q110*G110*$B$132,IF(F110="týdně",Q110*G110*$B$133,IF(F110="měsíčně",Q110*G110*$B$134,IF(F110="čtvrtletně",Q110*G110*4*$B$135,IF(F110="ročně",Q110*G110*$B$135,G110*Q110*$B$135)))))*'Základní údaje'!$H$13*IF(K110=1,'Základní údaje'!$C$12,1) -> 0
A111: buňka student (skladba 2 + 2 s balkónem): WC | B111: 1.8 | D111: 99 | E111: 178.2 | F111: sezonně | G111: 1 | H111: 25 | I111: 27 | J111: 1 | K111: 1 | L111: Typová činnost č.: 11 | M111: 10 | O111: 16.5 | P111: 0 | Q111: 0 | R111: =IF(F111="denně",Q111*G111*$B$132,IF(F111="týdně",Q111*G111*$B$133,IF(F111="měsíčně",Q111*G111*$B$134,IF(F111="čtvrtletně",Q111*G111*4*$B$135,IF(F111="ročně",Q111*G111*$B$135,G111*Q111*$B$135)))))*'Základní údaje'!$H$13*IF(K111=1,'Základní údaje'!$C$12,1) -> 0
A112: buňka student (skladba 2 + 2 s balkónem): koupelna se sprchou | B112: 2.3 | D112: 99 | E112: 227.7 | F112: sezonně | G112: 1 | H112: 25 | I112: 27 | J112: 1 | K112: 1 | L112: Typová činnost č.: 12 | M112: 15 | O112: 24.75 | P112: 0 | Q112: 0 | R112: =IF(F112="denně",Q112*G112*$B$132,IF(F112="týdně",Q112*G112*$B$133,IF(F112="měsíčně",Q112*G112*$B$134,IF(F112="čtvrtletně",Q112*G112*4*$B$135,IF(F112="ročně",Q112*G112*$B$135,G112*Q112*$B$135)))))*'Základní údaje'!$H$13*IF(K112=1,'Základní údaje'!$C$12,1) -> 0
A113: buňka student (skladba 2 + 2 s balkónem): pokoj | B113: 13.5 | D113: 198 | E113: 2673 | F113: sezonně | G113: 1 | H113: 25 | I113: 27 | J113: 1 | K113: 1 | L113: Typová činnost č.: 6 | M113: 20 | O113: 66 | P113: 0 | Q113: 0 | R113: =IF(F113="denně",Q113*G113*$B$132,IF(F113="týdně",Q113*G113*$B$133,IF(F113="měsíčně",Q113*G113*$B$134,IF(F113="čtvrtletně",Q113*G113*4*$B$135,IF(F113="ročně",Q113*G113*$B$135,G113*Q113*$B$135)))))*'Základní údaje'!$H$13*IF(K113=1,'Základní údaje'!$C$12,1) -> 0
A114: buňka student (skladba 2 + 2 s balkónem): balkón | B114: 6 | D114: 99 | E114: 594 | F114: sezonně | G114: 1 | H114: 25 | I114: 27 | J114: 1 | K114: 1 | L114: Typový úklid č.: 2 | M114: 5 | O114: 8.25 | P114: 0 | Q114: 0 | R114: =IF(F114="denně",Q114*G114*$B$132,IF(F114="týdně",Q114*G114*$B$133,IF(F114="měsíčně",Q114*G114*$B$134,IF(F114="čtvrtletně",Q114*G114*4*$B$135,IF(F114="ročně",Q114*G114*$B$135,G114*Q114*$B$135)))))*'Základní údaje'!$H$13*IF(K114=1,'Základní údaje'!$C$12,1) -> 0
A115: buňka student (skladba 2 + 2 s balkónem): kuchyňka + vstupní prostory | B115: 15 | D115: 99 | E115: 1485 | F115: sezonně | G115: 1 | H115: 35 | I115: 37 | J115: 1 | K115: 1 | L115: Typová činnost č.: 3 a 5 | M115: 25 | O115: 41.25 | P115: 0 | Q115: 0 | R115: =IF(F115="denně",Q115*G115*$B$132,IF(F115="týdně",Q115*G115*$B$133,IF(F115="měsíčně",Q115*G115*$B$134,IF(F115="čtvrtletně",Q115*G115*4*$B$135,IF(F115="ročně",Q115*G115*$B$135,G115*Q115*$B$135)))))*'Základní údaje'!$H$13*IF(K115=1,'Základní údaje'!$C$12,1) -> 0
A116: buňka student (skladba 2 + 2 s balkónem): komora | B116: 4.5 | D116: 99 | E116: 445.5 | F116: sezonně | G116: 1 | H116: 35 | I116: 37 | J116: 1 | K116: 1 | L116: Typová činnost č.: 3 | M116: 10 | O116: 16.5 | P116: 0 | Q116: 0 | R116: =IF(F116="denně",Q116*G116*$B$132,IF(F116="týdně",Q116*G116*$B$133,IF(F116="měsíčně",Q116*G116*$B$134,IF(F116="čtvrtletně",Q116*G116*4*$B$135,IF(F116="ročně",Q116*G116*$B$135,G116*Q116*$B$135)))))*'Základní údaje'!$H$13*IF(K116=1,'Základní údaje'!$C$12,1) -> 0
A117: buňka student (skladba 2 + 2 s balkónem): WC | B117: 1.8 | D117: 99 | E117: 178.2 | F117: sezonně | G117: 1 | H117: 35 | I117: 37 | J117: 1 | K117: 1 | L117: Typová činnost č.: 11 | M117: 10 | O117: 16.5 | P117: 0 | Q117: 0 | R117: =IF(F117="denně",Q117*G117*$B$132,IF(F117="týdně",Q117*G117*$B$133,IF(F117="měsíčně",Q117*G117*$B$134,IF(F117="čtvrtletně",Q117*G117*4*$B$135,IF(F117="ročně",Q117*G117*$B$135,G117*Q117*$B$135)))))*'Základní údaje'!$H$13*IF(K117=1,'Základní údaje'!$C$12,1) -> 0
A118: buňka student (skladba 2 + 2 s balkónem): koupelna se sprchou | B118: 2.3 | D118: 99 | E118: 227.7 | F118: sezonně | G118: 1 | H118: 35 | I118: 37 | J118: 1 | K118: 1 | L118: Typová činnost č.: 12 | M118: 15 | O118: 24.75 | P118: 0 | Q118: 0 | R118: =IF(F118="denně",Q118*G118*$B$132,IF(F118="týdně",Q118*G118*$B$133,IF(F118="měsíčně",Q118*G118*$B$134,IF(F118="čtvrtletně",Q118*G118*4*$B$135,IF(F118="ročně",Q118*G118*$B$135,G118*Q118*$B$135)))))*'Základní údaje'!$H$13*IF(K118=1,'Základní údaje'!$C$12,1) -> 0
A119: buňka student (skladba 2 + 2 s balkónem): pokoj | B119: 13.5 | D119: 198 | E119: 2673 | F119: sezonně | G119: 1 | H119: 35 | I119: 37 | J119: 1 | K119: 1 | L119: Typová činnost č.: 6 | M119: 20 | O119: 66 | P119: 0 | Q119: 0 | R119: =IF(F119="denně",Q119*G119*$B$132,IF(F119="týdně",Q119*G119*$B$133,IF(F119="měsíčně",Q119*G119*$B$134,IF(F119="čtvrtletně",Q119*G119*4*$B$135,IF(F119="ročně",Q119*G119*$B$135,G119*Q119*$B$135)))))*'Základní údaje'!$H$13*IF(K119=1,'Základní údaje'!$C$12,1) -> 0
A120: buňka student (skladba 2 + 2 s balkónem): balkón | B120: 6 | D120: 99 | E120: 594 | F120: sezonně | G120: 1 | H120: 35 | I120: 37 | J120: 1 | K120: 1 | L120: Typový úklid č.: 2 | M120: 5 | O120: 8.25 | P120: 0 | Q120: 0 | R120: =IF(F120="denně",Q120*G120*$B$132,IF(F120="týdně",Q120*G120*$B$133,IF(F120="měsíčně",Q120*G120*$B$134,IF(F120="čtvrtletně",Q120*G120*4*$B$135,IF(F120="ročně",Q120*G120*$B$135,G120*Q120*$B$135)))))*'Základní údaje'!$H$13*IF(K120=1,'Základní údaje'!$C$12,1) -> 0
A121: buňka student (skladba 2 + 2 s balkónem): kuchyňka + vstupní prostory | B121: 15 | D121: 99 | E121: 1485 | F121: sezonně | G121: 1 | H121: 6 | I121: 17 | J121: 1 | K121: 0 | L121: Typová činnost č.: 3 a 5 | M121: 25 | O121: 41.25 | P121: 0 | Q121: 0 | R121: =IF(F121="denně",Q121*G121*$B$132,IF(F121="týdně",Q121*G121*$B$133,IF(F121="měsíčně",Q121*G121*$B$134,IF(F121="čtvrtletně",Q121*G121*4*$B$135,IF(F121="ročně",Q121*G121*$B$135,G121*Q121*$B$135)))))*'Základní údaje'!$H$13*IF(K121=1,'Základní údaje'!$C$12,1) -> 0
A122: buňka student (skladba 2 + 2 s balkónem): komora | B122: 4.5 | D122: 99 | E122: 445.5 | F122: sezonně | G122: 1 | H122: 6 | I122: 17 | J122: 1 | K122: 0 | L122: Typová činnost č.: 3 | M122: 10 | O122: 16.5 | P122: 0 | Q122: 0 | R122: =IF(F122="denně",Q122*G122*$B$132,IF(F122="týdně",Q122*G122*$B$133,IF(F122="měsíčně",Q122*G122*$B$134,IF(F122="čtvrtletně",Q122*G122*4*$B$135,IF(F122="ročně",Q122*G122*$B$135,G122*Q122*$B$135)))))*'Základní údaje'!$H$13*IF(K122=1,'Základní údaje'!$C$12,1) -> 0
A123: buňka student (skladba 2 + 2 s balkónem): WC | B123: 1.8 | D123: 99 | E123: 178.2 | F123: sezonně | G123: 1 | H123: 6 | I123: 17 | J123: 1 | K123: 0 | L123: Typová činnost č.: 11 | M123: 10 | O123: 16.5 | P123: 0 | Q123: 0 | R123: =IF(F123="denně",Q123*G123*$B$132,IF(F123="týdně",Q123*G123*$B$133,IF(F123="měsíčně",Q123*G123*$B$134,IF(F123="čtvrtletně",Q123*G123*4*$B$135,IF(F123="ročně",Q123*G123*$B$135,G123*Q123*$B$135)))))*'Základní údaje'!$H$13*IF(K123=1,'Základní údaje'!$C$12,1) -> 0
A124: buňka student (skladba 2 + 2 s balkónem): koupelna se sprchou | B124: 2.3 | D124: 99 | E124: 227.7 | F124: sezonně | G124: 1 | H124: 6 | I124: 17 | J124: 1 | K124: 0 | L124: Typová činnost č.: 12 | M124: 15 | O124: 24.75 | P124: 0 | Q124: 0 | R124: =IF(F124="denně",Q124*G124*$B$132,IF(F124="týdně",Q124*G124*$B$133,IF(F124="měsíčně",Q124*G124*$B$134,IF(F124="čtvrtletně",Q124*G124*4*$B$135,IF(F124="ročně",Q124*G124*$B$135,G124*Q124*$B$135)))))*'Základní údaje'!$H$13*IF(K124=1,'Základní údaje'!$C$12,1) -> 0
A125: buňka student (skladba 2 + 2 s balkónem): kuchyňka + vstupní prostory | B125: 15 | D125: 99 | E125: =B125*D125+C125*D125 -> 1485 | F125: sezonně | G125: 1 | H125: 40 | I125: 51 | J125: 1 | K125: 0 | L125: Typová činnost č.: 3 a 5 | M125: 25 | O125: =IF(N125=0,M125*D125/60,N125*D125/60) -> 41.25 | P125: 0 | Q125: =P125*D125 -> 0 | R125: =IF(F125="denně",Q125*G125*$B$132,IF(F125="týdně",Q125*G125*$B$133,IF(F125="měsíčně",Q125*G125*$B$134,IF(F125="čtvrtletně",Q125*G125*4*$B$135,IF(F125="ročně",Q125*G125*$B$135,G125*Q125*$B$135)))))*'Základní údaje'!$H$13*IF(K125=1,'Základní údaje'!$C$12,1) -> 0
A126: buňka student (skladba 2 + 2 s balkónem): komora | B126: 4.5 | D126: 99 | E126: 445.5 | F126: sezonně | G126: 1 | H126: 40 | I126: 51 | J126: 1 | K126: 0 | L126: Typová činnost č.: 3 | M126: 10 | O126: 16.5 | P126: 0 | Q126: 0 | R126: =IF(F126="denně",Q126*G126*$B$132,IF(F126="týdně",Q126*G126*$B$133,IF(F126="měsíčně",Q126*G126*$B$134,IF(F126="čtvrtletně",Q126*G126*4*$B$135,IF(F126="ročně",Q126*G126*$B$135,G126*Q126*$B$135)))))*'Základní údaje'!$H$13*IF(K126=1,'Základní údaje'!$C$12,1) -> 0
A127: buňka student (skladba 2 + 2 s balkónem): WC | B127: 1.8 | D127: 99 | E127: 178.2 | F127: sezonně | G127: 1 | H127: 40 | I127: 51 | J127: 1 | K127: 0 | L127: Typová činnost č.: 11 | M127: 10 | O127: 16.5 | P127: 0 | Q127: 0 | R127: =IF(F127="denně",Q127*G127*$B$132,IF(F127="týdně",Q127*G127*$B$133,IF(F127="měsíčně",Q127*G127*$B$134,IF(F127="čtvrtletně",Q127*G127*4*$B$135,IF(F127="ročně",Q127*G127*$B$135,G127*Q127*$B$135)))))*'Základní údaje'!$H$13*IF(K127=1,'Základní údaje'!$C$12,1) -> 0
A128: buňka student (skladba 2 + 2 s balkónem): koupelna se sprchou | B128: 2.3 | D128: 99 | E128: =B128*D128+C128*D128 -> 227.7 | F128: sezonně | G128: 1 | H128: 40 | I128: 51 | J128: 1 | K128: 0 | L128: Typová činnost č.: 12 | M128: 15 | O128: =IF(N128=0,M128*D128/60,N128*D128/60) -> 24.75 | P128: =ROUND(IF(N128=0,M128/60*$B$2,N128/60*$B$2),0) -> 0 | Q128: =P128*D128 -> 0 | R128: =IF(F128="denně",Q128*G128*$B$132,IF(F128="týdně",Q128*G128*$B$133,IF(F128="měsíčně",Q128*G128*$B$134,IF(F128="čtvrtletně",Q128*G128*4*$B$135,IF(F128="ročně",Q128*G128*$B$135,G128*Q128*$B$135)))))*'Základní údaje'!$H$13*IF(K128=1,'Základní údaje'!$C$12,1) -> 0
A129: Položení povlečení na postele | C129: 1 | D129: 990 | E129: 990 | F129: sezonně | G129: 1 | H129: 36 | I129: 36 | J129: 1 | K129: 0 | L129: Položit na každou postel povleční polštáře, deky a prostěradla. | M129: 1 | O129: 16.5 | P129: 0 | Q129: 0 | R129: =IF(F129="denně",Q129*G129*$B$132,IF(F129="týdně",Q129*G129*$B$133,IF(F129="měsíčně",Q129*G129*$B$134,IF(F129="čtvrtletně",Q129*G129*4*$B$135,IF(F129="ročně",Q129*G129*$B$135,G129*Q129*$B$135)))))*'Základní údaje'!$H$13*IF(K129=1,'Základní údaje'!$C$12,1) -> 0
A130: Plocha celkem | B130: =SUMPRODUCT(B4:B129,D4:D129) -> 51786.5 | C130: [m²]
A131: Počet kusů celkem | B131: =SUMPRODUCT(C4:C129,D4:D129) -> 3083 | C131: [-]
A132: Počet pracovních dnů úklidu: | B132: =NETWORKDAYS($C$1,$D$1,$A$142:$A$207) -> 1006 | L132: =NETWORKDAYS(J132,K132,J133) -> 0
A133: Počet týdnů úklidu: | B133: =B135*52 -> 208
A134: Počet měsíců úklidu: | B134: =B135*12 -> 48
A135: Počet let úklidu | B135: =TRUNC((D1-C1)/365+0.1,0) -> 4
A136: CENA CELKEM: | B136: =ROUND(SUM(R4:R129),0) -> 0 | E136: [Kč]
A141: svátky: | G141: Kritéria
A142: 2019-01-01 | G142: =$F$3 -> uklízí se
A143: 2019-04-19 | G143: =B142 -> 0
A144: 2019-04-22
A145: 2019-05-01 | G145: =$F$3 -> uklízí se
A146: 2019-05-08 | G146: =B143 -> 0
A147: 2019-07-05
A148: 2019-10-28 | G148: =$F$3 -> uklízí se
A149: 2019-12-24 | G149: =B144 -> 0
A150: 2019-12-25
A151: 2019-12-26 | G151: =$F$3 -> uklízí se
A152: 2020-01-01 | G152: =B145 -> 0
A153: 2020-04-10
A154: 2020-04-13 | G154: =$F$3 -> uklízí se
A155: 2020-05-01 | G155: =B146 -> 0
A156: 2020-05-08
A157: 2020-07-06
A158: 2020-09-28
A159: 2020-10-28
A160: 2020-11-17
A161: 2020-12-24
A162: 2020-12-25
A163: 2021-01-01
A164: 2021-04-02
A165: 2021-04-05
A166: 2021-07-05
A167: 2021-07-06
A168: 2021-09-28
A169: 2021-10-28
A170: 2021-11-17
A171: 2021-12-24
A172: 2022-04-15
A173: 2022-04-18
A174: 2022-07-05
A175: 2022-07-06
A176: 2022-09-28
A177: 2022-10-28
A178: 2022-11-17
A179: 2022-12-26
A180: 2023-04-07
A181: 2023-04-10
A182: 2023-05-01
A183: 2023-05-08
A184: 2023-07-05
A185: 2023-07-06
A186: 2023-09-28
A187: 2023-11-17
A188: 2023-12-25
A189: 2023-12-26
A190: 2024-01-01
A191: 2024-03-29
A192: 2024-04-01
A193: 2024-05-01
A194: 2024-05-08
A195: 2024-07-05
A196: 2024-10-28
A197: 2024-12-24
A198: 2024-12-26
A199: 2024-12-26
A200: 2025-01-01
A201: 2025-04-18
A202: 2025-04-21
A203: 2025-10-28
A204: 2025-11-17
... 3 more rows

Sheet Karty úklidu
A1: V komentáři jsou zkatky pro tisk
A2: Karta úklidu | D2: ='Rozpis úklidu'!$A$1 -> kolej: Blanice, VŠE
A3: DENNÍ ÚKLID DNE: | B3: =NOW() -> 2020-09-22T14:55:12.410
A4: ='Rozpis úklidu'!$A$3 -> Úklidová jednotka | B4: ='Rozpis úklidu'!$D$3 -> počet úklidových jednotek | C4: Doba úklidu [hod.] | D4: ='Rozpis úklidu'!$L$3 -> Popis činnosti | E4: ='Rozpis úklidu'!$Q$3 -> cena celkem za všechny úklidové jednotky (prac. dny) [Kč] | F4: Správně uklizené jednotky | G4: Smluvní pokuta [Kč] | H4: Poznámka
A5: ='Rozpis úklidu'!A4 -> Schodiště | B5: ='Rozpis úklidu'!D4 -> 31 | C5: =IF('Rozpis úklidu'!N4=0,'Rozpis úklidu'!M4*B5/60,'Rozpis úklidu'!N4*B5/60) -> 1.033333333 | D5: ='Rozpis úklidu'!L4 -> Typová činnost č.: 1 | E5: ='Rozpis úklidu'!Q4*(IF(F5<B5,F5/B5,1)) -> 0 | F5: =B5 -> 31 | G5: =IF(F5<B5,(B5-F5)*('Rozpis úklidu'!Q4/B5)*2,0) -> 0
A6: ='Rozpis úklidu'!A5 -> výtah malý | B6: ='Rozpis úklidu'!D5 -> 3 | C6: =IF('Rozpis úklidu'!N5=0,'Rozpis úklidu'!M5*B6/60,'Rozpis úklidu'!N5*B6/60) -> 0.25 | D6: ='Rozpis úklidu'!L5 -> zamést, vytřít, umýt stěny, vyleštit zrcadlo, vyluxovat drážku dveří | E6: ='Rozpis úklidu'!Q5*(IF(F6<B6,F6/B6,1)) -> 0 | F6: =B6 -> 3 | G6: =IF(F6<B6,(B6-F6)*('Rozpis úklidu'!Q5/B6)*2,0) -> 0
A7: ='Rozpis úklidu'!A6 -> výtah velký | B7: ='Rozpis úklidu'!D6 -> 3 | C7: =IF('Rozpis úklidu'!N6=0,'Rozpis úklidu'!M6*B7/60,'Rozpis úklidu'!N6*B7/60) -> 0.75 | D7: ='Rozpis úklidu'!L6 -> zamést, vytřít, umýt stěny, vyleštit zrcadlo, vyluxovat drážku dveří | E7: ='Rozpis úklidu'!Q6*(IF(F7<B7,F7/B7,1)) -> 0 | F7: 3 | G7: =IF(F7<B7,(B7-F7)*('Rozpis úklidu'!Q6/B7)*2,0) -> 0
A8: ='Rozpis úklidu'!A7 -> chodba za výtahy | B8: ='Rozpis úklidu'!D7 -> 34 | C8: =IF('Rozpis úklidu'!N7=0,'Rozpis úklidu'!M7*B8/60,'Rozpis úklidu'!N7*B8/60) -> 3.4 | D8: ='Rozpis úklidu'!L7 -> Typová činnost č.: 1 | E8: ='Rozpis úklidu'!Q7*(IF(F8<B8,F8/B8,1)) -> 0 | F8: 34 | G8: =IF(F8<B8,(B8-F8)*('Rozpis úklidu'!Q7/B8)*2,0) -> 0
A9: ='Rozpis úklidu'!A8 -> patro chodba | B9: ='Rozpis úklidu'!D8 -> 10 | C9: =IF('Rozpis úklidu'!N8=0,'Rozpis úklidu'!M8*B9/60,'Rozpis úklidu'!N8*B9/60) -> 4.166666667 | D9: ='Rozpis úklidu'!L8 -> Typová činnost č.: 1 | E9: ='Rozpis úklidu'!Q8*(IF(F9<B9,F9/B9,1)) -> 0 | F9: 10 | G9: =IF(F9<B9,(B9-F9)*('Rozpis úklidu'!Q8/B9)*2,0) -> 0
A10: ='Rozpis úklidu'!A9 -> patro chodba - tkz. téčko | B10: ='Rozpis úklidu'!D9 -> 11 | C10: =IF('Rozpis úklidu'!N9=0,'Rozpis úklidu'!M9*B10/60,'Rozpis úklidu'!N9*B10/60) -> 1.283333333 | D10: ='Rozpis úklidu'!L9 -> Typová činnost č.: 1 | E10: ='Rozpis úklidu'!Q9*(IF(F10<B10,F10/B10,1)) -> 0 | F10: 11 | G10: =IF(F10<B10,(B10-F10)*('Rozpis úklidu'!Q9/B10)*2,0) -> 0
A11: ='Rozpis úklidu'!A10 -> chodba 1PP | B11: ='Rozpis úklidu'!D10 -> 1 | C11: =IF('Rozpis úklidu'!N10=0,'Rozpis úklidu'!M10*B11/60,'Rozpis úklidu'!N10*B11/60) -> 0.2 | D11: ='Rozpis úklidu'!L10 -> Typová činnost č.: 1 | E11: ='Rozpis úklidu'!Q10*(IF(F11<B11,F11/B11,1)) -> 0 | F11: 1 | G11: =IF(F11<B11,(B11-F11)*('Rozpis úklidu'!Q10/B11)*2,0) -> 0
A12: ='Rozpis úklidu'!A11 -> chodba 2PP | B12: ='Rozpis úklidu'!D11 -> 1 | C12: =IF('Rozpis úklidu'!N11=0,'Rozpis úklidu'!M11*B12/60,'Rozpis úklidu'!N11*B12/60) -> 0.05 | D12: ='Rozpis úklidu'!L11 -> Typová činnost č.: 1 | E12: ='Rozpis úklidu'!Q11*(IF(F12<B12,F12/B12,1)) -> 0 | F12: 1 | G12: =IF(F12<B12,(B12-F12)*('Rozpis úklidu'!Q11/B12)*2,0) -> 0
A13: ='Rozpis úklidu'!A12 -> studovna + balkon ( 6m2) | B13: ='Rozpis úklidu'!D12 -> 15 | C13: =IF('Rozpis úklidu'!N12=0,'Rozpis úklidu'!M12*B13/60,'Rozpis úklidu'!N12*B13/60) -> 2.5 | D13: ='Rozpis úklidu'!L12 -> Typová činnost č.: 2 a 3 | E13: ='Rozpis úklidu'!Q12*(IF(F13<B13,F13/B13,1)) -> 0 | F13: 15 | G13: =IF(F13<B13,(B13-F13)*('Rozpis úklidu'!Q12/B13)*2,0) -> 0
A14: ='Rozpis úklidu'!A13 -> spol. místnost - dataprojektor + balkon ( 6m2) | B14: ='Rozpis úklidu'!D13 -> 1 | C14: =IF('Rozpis úklidu'!N13=0,'Rozpis úklidu'!M13*B14/60,'Rozpis úklidu'!N13*B14/60) -> 0.2166666667 | D14: ='Rozpis úklidu'!L13 -> Typová činnost č.: 2 a 3 | E14: ='Rozpis úklidu'!Q13*(IF(F14<B14,F14/B14,1)) -> 0 | F14: 1 | G14: =IF(F14<B14,(B14-F14)*('Rozpis úklidu'!Q13/B14)*2,0) -> 0
A15: ='Rozpis úklidu'!A14 -> spol. místnost - kulečník, piáno + balkon ( 6m2) | B15: ='Rozpis úklidu'!D14 -> 1 | C15: =IF('Rozpis úklidu'!N14=0,'Rozpis úklidu'!M14*B15/60,'Rozpis úklidu'!N14*B15/60) -> 0.2166666667 | D15: ='Rozpis úklidu'!L14 -> Typová činnost č.: 2 a 3 | E15: ='Rozpis úklidu'!Q14*(IF(F15<B15,F15/B15,1)) -> 0 | F15: 1 | G15: =IF(F15<B15,(B15-F15)*('Rozpis úklidu'!Q14/B15)*2,0) -> 0
A16: ='Rozpis úklidu'!A15 -> spol. místnost - herna (obývák) + balkon ( 6m2) | B16: ='Rozpis úklidu'!D15 -> 1 | C16: =IF('Rozpis úklidu'!N15=0,'Rozpis úklidu'!M15*B16/60,'Rozpis úklidu'!N15*B16/60) -> 0.2166666667 | D16: ='Rozpis úklidu'!L15 -> Typová činnost č.: 2 a 3 | E16: ='Rozpis úklidu'!Q15*(IF(F16<B16,F16/B16,1)) -> 0 | F16: 1 | G16: =IF(F16<B16,(B16-F16)*('Rozpis úklidu'!Q15/B16)*2,0) -> 0
A17: ='Rozpis úklidu'!A16 -> spol.místnost s kuchyňkou + balkon ( 6m2) | B17: ='Rozpis úklidu'!D16 -> 1 | C17: =IF('Rozpis úklidu'!N16=0,'Rozpis úklidu'!M16*B17/60,'Rozpis úklidu'!N16*B17/60) -> 0.3833333333 | D17: ='Rozpis úklidu'!L16 -> Typová činnost č.: 2 a 5 | E17: ='Rozpis úklidu'!Q16*(IF(F17<B17,F17/B17,1)) -> 0 | F17: 1 | G17: =IF(F17<B17,(B17-F17)*('Rozpis úklidu'!Q16/B17)*2,0) -> 0
A18: ='Rozpis úklidu'!A17 -> společná prádelna (8x pračka + 2x sušička) | B18: ='Rozpis úklidu'!D17 -> 1 | C18: =IF('Rozpis úklidu'!N17=0,'Rozpis úklidu'!M17*B18/60,'Rozpis úklidu'!N17*B18/60) -> 0.75 | D18: ='Rozpis úklidu'!L17 -> Typová činnost č.: 5 | E18: ='Rozpis úklidu'!Q17*(IF(F18<B18,F18/B18,1)) -> 0 | F18: 1 | G18: =IF(F18<B18,(B18-F18)*('Rozpis úklidu'!Q17/B18)*2,0) -> 0
A19: ='Rozpis úklidu'!A18 -> tělocvična malá ( tanec) + balkon ( 6m2) | B19: ='Rozpis úklidu'!D18 -> 1 | C19: =IF('Rozpis úklidu'!N18=0,'Rozpis úklidu'!M18*B19/60,'Rozpis úklidu'!N18*B19/60) -> 0.3333333333 | D19: ='Rozpis úklidu'!L18 -> Typová činnost č.: 2 a 3 | E19: ='Rozpis úklidu'!Q18*(IF(F19<B19,F19/B19,1)) -> 0 | F19: 1 | G19: =IF(F19<B19,(B19-F19)*('Rozpis úklidu'!Q18/B19)*2,0) -> 0
A20: ='Rozpis úklidu'!A19 -> tělocvična velká (aerobic) | B20: ='Rozpis úklidu'!D19 -> 1 | C20: =IF('Rozpis úklidu'!N19=0,'Rozpis úklidu'!M19*B20/60,'Rozpis úklidu'!N19*B20/60) -> 0.65 | D20: ='Rozpis úklidu'!L19 -> Typová činnost č.: 3 | E20: ='Rozpis úklidu'!Q19*(IF(F20<B20,F20/B20,1)) -> 0 | F20: 1 | G20: =IF(F20<B20,(B20-F20)*('Rozpis úklidu'!Q19/B20)*2,0) -> 0
A21: ='Rozpis úklidu'!A20 -> tělocvična - stolní tenis | B21: ='Rozpis úklidu'!D20 -> 1 | C21: =IF('Rozpis úklidu'!N20=0,'Rozpis úklidu'!M20*B21/60,'Rozpis úklidu'!N20*B21/60) -> 0.35 | D21: ='Rozpis úklidu'!L20 -> Typová činnost č.: 3 | E21: ='Rozpis úklidu'!Q20*(IF(F21<B21,F21/B21,1)) -> 0 | F21: 1 | G21: =IF(F21<B21,(B21-F21)*('Rozpis úklidu'!Q20/B21)*2,0) -> 0
A22: ='Rozpis úklidu'!A21 -> posilovna + balkon ( 6m2) | B22: ='Rozpis úklidu'!D21 -> 1 | C22: =IF('Rozpis úklidu'!N21=0,'Rozpis úklidu'!M21*B22/60,'Rozpis úklidu'!N21*B22/60) -> 1.9 | D22: ='Rozpis úklidu'!L21 -> Typová činnost č.: 2 a 3 | E22: ='Rozpis úklidu'!Q21*(IF(F22<B22,F22/B22,1)) -> 0 | F22: 1 | G22: =IF(F22<B22,(B22-F22)*('Rozpis úklidu'!Q21/B22)*2,0) -> 0
A23: ='Rozpis úklidu'!A22 -> WC posilovna | B23: ='Rozpis úklidu'!D22 -> 1 | C23: =IF('Rozpis úklidu'!N22=0,'Rozpis úklidu'!M22*B23/60,'Rozpis úklidu'!N22*B23/60) -> 0.1333333333 | D23: ='Rozpis úklidu'!L22 -> Typová činnost č.: 11 | E23: ='Rozpis úklidu'!Q22*(IF(F23<B23,F23/B23,1)) -> 0 | F23: 1 | G23: =IF(F23<B23,(B23-F23)*('Rozpis úklidu'!Q22/B23)*2,0) -> 0
A24: ='Rozpis úklidu'!A23 -> kanceláře+balkón ( 6m2) | B24: ='Rozpis úklidu'!D23 -> 2 | C24: =IF('Rozpis úklidu'!N23=0,'Rozpis úklidu'!M23*B24/60,'Rozpis úklidu'!N23*B24/60) -> 0.3 | D24: ='Rozpis úklidu'!L23 -> Typová činnost č.: 2 a 3 | E24: ='Rozpis úklidu'!Q23*(IF(F24<B24,F24/B24,1)) -> 0 | F24: 2 | G24: =IF(F24<B24,(B24-F24)*('Rozpis úklidu'!Q23/B24)*2,0) -> 0
A25: ='Rozpis úklidu'!A24 -> prostor před hlavním vchodem + schodiště | B25: ='Rozpis úklidu'!D24 -> 1 | C25: =IF('Rozpis úklidu'!N24=0,'Rozpis úklidu'!M24*B25/60,'Rozpis úklidu'!N24*B25/60) -> 0.1666666667 | D25: ='Rozpis úklidu'!L24 -> zamést, pouze při nadměrném znečištění vytřít, vynést odpad | E25: ='Rozpis úklidu'!Q24*(IF(F25<B25,F25/B25,1)) -> 0 | F25: 1 | G25: =IF(F25<B25,(B25-F25)*('Rozpis úklidu'!Q24/B25)*2,0) -> 0
A26: ='Rozpis úklidu'!A25 -> zádveří - hlavní vchod | B26: ='Rozpis úklidu'!D25 -> 1 | C26: =IF('Rozpis úklidu'!N25=0,'Rozpis úklidu'!M25*B26/60,'Rozpis úklidu'!N25*B26/60) -> 0.1 | D26: ='Rozpis úklidu'!L25 -> zamést, pouze při nadměrném znečištění vytřít, vyluxovat rohože, umýt rámy a vyleštit skleněné plochy ( dveře, portály) | E26: ='Rozpis úklidu'!Q25*(IF(F26<B26,F26/B26,1)) -> 0 | F26: 1 | G26: =IF(F26<B26,(B26-F26)*('Rozpis úklidu'!Q25/B26)*2,0) -> 0
A27: ='Rozpis úklidu'!A26 -> Hala před recepcí | B27: ='Rozpis úklidu'!D26 -> 1 | C27: =IF('Rozpis úklidu'!N26=0,'Rozpis úklidu'!M26*B27/60,'Rozpis úklidu'!N26*B27/60) -> 0.9166666667 | D27: ='Rozpis úklidu'!L26 -> Typová činnost č.: 1 | E27: ='Rozpis úklidu'!Q26*(IF(F27<B27,F27/B27,1)) -> 0 | F27: 1 | G27: =IF(F27<B27,(B27-F27)*('Rozpis úklidu'!Q26/B27)*2,0) -> 0
A28: ='Rozpis úklidu'!A27 -> recepce | B28: ='Rozpis úklidu'!D27 -> 1 | C28: =IF('Rozpis úklidu'!N27=0,'Rozpis úklidu'!M27*B28/60,'Rozpis úklidu'!N27*B28/60) -> 0.08333333333 | D28: ='Rozpis úklidu'!L27 -> Typová činnost č.: 3 | E28: ='Rozpis úklidu'!Q27*(IF(F28<B28,F28/B28,1)) -> 0 | F28: 1 | G28: =IF(F28<B28,(B28-F28)*('Rozpis úklidu'!Q27/B28)*2,0) -> 0
A29: ='Rozpis úklidu'!A28 -> zázemí recepce ( šatna + WC) | B29: ='Rozpis úklidu'!D28 -> 1 | C29: =IF('Rozpis úklidu'!N28=0,'Rozpis úklidu'!M28*B29/60,'Rozpis úklidu'!N28*B29/60) -> 0.1666666667 | D29: ='Rozpis úklidu'!L28 -> Typová činnost č.: 3 a 11 | E29: ='Rozpis úklidu'!Q28*(IF(F29<B29,F29/B29,1)) -> 0 | F29: 1 | G29: =IF(F29<B29,(B29-F29)*('Rozpis úklidu'!Q28/B29)*2,0) -> 0
A30: ='Rozpis úklidu'!A29 -> WC pro veřejnost | B30: ='Rozpis úklidu'!D29 -> 1 | C30: =IF('Rozpis úklidu'!N29=0,'Rozpis úklidu'!M29*B30/60,'Rozpis úklidu'!N29*B30/60) -> 0.1333333333 | D30: ='Rozpis úklidu'!L29 -> Typová činnost č.: 11 | E30: ='Rozpis úklidu'!Q29*(IF(F30<B30,F30/B30,1)) -> 0 | F30: 1 | G30: =IF(F30<B30,(B30-F30)*('Rozpis úklidu'!Q29/B30)*2,0) -> 0
A31: ='Rozpis úklidu'!A30 -> chodba ( krček) | B31: ='Rozpis úklidu'!D30 -> 1 | C31: =IF('Rozpis úklidu'!N30=0,'Rozpis úklidu'!M30*B31/60,'Rozpis úklidu'!N30*B31/60) -> 0.3833333333 | D31: ='Rozpis úklidu'!L30 -> Typová činnost č.: 1 a zalití květin | E31: ='Rozpis úklidu'!Q30*(IF(F31<B31,F31/B31,1)) -> 0 | F31: 1 | G31: =IF(F31<B31,(B31-F31)*('Rozpis úklidu'!Q30/B31)*2,0) -> 0
A32: ='Rozpis úklidu'!A31 -> WC - úklidu | B32: ='Rozpis úklidu'!D31 -> 1 | C32: =IF('Rozpis úklidu'!N31=0,'Rozpis úklidu'!M31*B32/60,'Rozpis úklidu'!N31*B32/60) -> 0.1333333333 | D32: ='Rozpis úklidu'!L31 -> Typová činnost č.: 11 | E32: ='Rozpis úklidu'!Q31*(IF(F32<B32,F32/B32,1)) -> 0 | F32: 1 | G32: =IF(F32<B32,(B32-F32)*('Rozpis úklidu'!Q31/B32)*2,0) -> 0
A33: Úklidová pohotovost + Operativní úklidové práce dle požadavku vedoucí koleje | B33: ='Základní údaje'!B11 -> 0 | E33: =B33/60*F33 -> 0 | G33: 0
B34: Celkem hodin: | C34: =SUM(C5:C32) -> 21.16666667 | D34: K FAKTURACI CELKEM: | E34: =SUM(E5:E33) -> 0 | G34: =SUM(G5:G33) -> 0
A35: Podpis vedoucí směny: | D35: Podpis zástupce vedení koleje:
A37: Karta úklidu | D37: ='Rozpis úklidu'!$A$1 -> kolej: Blanice, VŠE
A38: TÝDENNÍ ÚKLID TÝDEN: | B38: =WEEKNUM(TODAY(),1) -> 39 | D38: =(NOW()) -> 2020-09-22T14:55:12.410
A39: ='Rozpis úklidu'!$A$3 -> Úklidová jednotka | B39: ='Rozpis úklidu'!$D$3 -> počet úklidových jednotek | C39: =$C$4 -> Doba úklidu [hod.] | D39: ='Rozpis úklidu'!$L$3 -> Popis činnosti | E39: ='Rozpis úklidu'!$Q$3 -> cena celkem za všechny úklidové jednotky (prac. dny) [Kč] | F39: Správně uklizené jednotky | G39: Smluvní pokuta [Kč] | H39: Poznámka
A40: ='Rozpis úklidu'!A32 -> schodiště na střechu | B40: ='Rozpis úklidu'!D32 -> 3 | C40: =IF('Rozpis úklidu'!N32=0,'Rozpis úklidu'!M32*B40/60,'Rozpis úklidu'!N32*B40/60) -> 0.25 | D40: ='Rozpis úklidu'!L32 -> zamést, vytřít, setřít prach | E40: ='Rozpis úklidu'!Q32*(IF(F40<B40,F40/B40,1)) -> 0 | F40: =B40 -> 3 | G40: =IF(F40<B40,(B40-F40)*('Rozpis úklidu'!Q32/B40)*2,0) -> 0
A41: ='Rozpis úklidu'!A33 -> zábradlí na střechu | B41: ='Rozpis úklidu'!D33 -> 3 | C41: =IF('Rozpis úklidu'!N33=0,'Rozpis úklidu'!M33*B41/60,'Rozpis úklidu'!N33*B41/60) -> 0.15 | D41: ='Rozpis úklidu'!L33 -> umýt | E41: ='Rozpis úklidu'!Q33*(IF(F41<B41,F41/B41,1)) -> 0 | F41: =B41 -> 3 | G41: =IF(F41<B41,(B41-F41)*('Rozpis úklidu'!Q33/B41)*2,0) -> 0
A42: ='Rozpis úklidu'!A34 -> zábradlí - schodiště | B42: ='Rozpis úklidu'!D34 -> 62 | C42: =IF('Rozpis úklidu'!N34=0,'Rozpis úklidu'!M34*B42/60,'Rozpis úklidu'!N34*B42/60) -> 3.1 | D42: ='Rozpis úklidu'!L34 -> Typová činnost č.: 1 | E42: ='Rozpis úklidu'!Q34*(IF(F42<B42,F42/B42,1)) -> 0 | F42: 62 | G42: =IF(F42<B42,(B42-F42)*('Rozpis úklidu'!Q34/B42)*2,0) -> 0
A43: ='Rozpis úklidu'!A35 -> zábradlí - chodba za výtahy | B43: ='Rozpis úklidu'!D35 -> 31 | C43: =IF('Rozpis úklidu'!N35=0,'Rozpis úklidu'!M35*B43/60,'Rozpis úklidu'!N35*B43/60) -> 1.55 | D43: ='Rozpis úklidu'!L35 -> Typová činnost č.: 1 | E43: ='Rozpis úklidu'!Q35*(IF(F43<B43,F43/B43,1)) -> 0 | F43: 31 | G43: =IF(F43<B43,(B43-F43)*('Rozpis úklidu'!Q35/B43)*2,0) -> 0
A44: ='Rozpis úklidu'!A36 -> místnost úklízeček a úklid.prost. | B44: ='Rozpis úklidu'!D36 -> 2 | C44: =IF('Rozpis úklidu'!N36=0,'Rozpis úklidu'!M36*B44/60,'Rozpis úklidu'!N36*B44/60) -> 0.3333333333 | D44: ='Rozpis úklidu'!L36 -> Typová činnost č.: 3 | E44: ='Rozpis úklidu'!Q36*(IF(F44<B44,F44/B44,1)) -> 0 | F44: 2 | G44: =IF(F44<B44,(B44-F44)*('Rozpis úklidu'!Q36/B44)*2,0) -> 0
B45: Celkem hodin prům. za den | C45: =SUM(C40:C44)/5 -> 1.076666667 | D45: K FAKTURACI CELKEM: | E45: =SUM(E40:E44) -> 0 | G45: =SUM(G40:G44) -> 0
A46: Podpis vedoucí směny: | D46: Podpis zástupce vedení koleje:
A48: Karta úklidu | D48: ='Rozpis úklidu'!$A$1 -> kolej: Blanice, VŠE
A49: MĚSÍČNÍ ÚKLID MĚSÍC: | B49: =MONTH(D49) -> 9 | D49: =NOW() -> 2020-09-22T14:55:12.410
A50: ='Rozpis úklidu'!$A$3 -> Úklidová jednotka | B50: ='Rozpis úklidu'!$D$3 -> počet úklidových jednotek | C50: =$C$4 -> Doba úklidu [hod.] | D50: ='Rozpis úklidu'!$L$3 -> Popis činnosti | E50: ='Rozpis úklidu'!$Q$3 -> cena celkem za všechny úklidové jednotky (prac. dny) [Kč] | F50: Správně uklizené jednotky | G50: Smluvní pokuta [Kč] | H50: Poznámka
A51: =CONCATENATE('Rozpis úklidu'!A37," / ",'Rozpis úklidu'!F37) -> radiátory ÚT - chodba patro + chodba schodiště ( 17 článků ÚT) / měsíčně | B51: ='Rozpis úklidu'!D37 -> 78 | C51: =IF('Rozpis úklidu'!N37=0,'Rozpis úklidu'!M37*B51/60,'Rozpis úklidu'!N37*B51/60) -> 10.4 | D51: ='Rozpis úklidu'!L37 -> umýt | E51: ='Rozpis úklidu'!Q37*(IF(F51<B51,F51/B51,1)) -> 0 | F51: =B51 -> 78 | G51: =IF(F51<B51,(B51-F51)*('Rozpis úklidu'!Q37/B51)*2,0) -> 0
A52: =CONCATENATE('Rozpis úklidu'!A38," / ",'Rozpis úklidu'!F38) -> skleněné plochy + portálové dveře ( oboustranně) / měsíčně | B52: ='Rozpis úklidu'!D38 -> 35 | C52: =IF('Rozpis úklidu'!N38=0,'Rozpis úklidu'!M38*B52/60,'Rozpis úklidu'!N38*B52/60) -> 2.916666667 | D52: ='Rozpis úklidu'!L38 -> umýt a vyleštit | E52: ='Rozpis úklidu'!Q38*(IF(F52<B52,F52/B52,1)) -> 0 | F52: =B52 -> 35 | G52: =IF(F52<B52,(B52-F52)*('Rozpis úklidu'!Q38/B52)*2,0) -> 0
A53: =CONCATENATE('Rozpis úklidu'!A39," / ",'Rozpis úklidu'!F39) -> skleněné chodbové spojovací dveře ( oboustraně) / měsíčně | B53: ='Rozpis úklidu'!D39 -> 73 | C53: =IF('Rozpis úklidu'!N39=0,'Rozpis úklidu'!M39*B53/60,'Rozpis úklidu'!N39*B53/60) -> 2.433333333 | D53: ='Rozpis úklidu'!L39 -> umýt a vyleštit | E53: ='Rozpis úklidu'!Q39*(IF(F53<B53,F53/B53,1)) -> 0 | F53: 73 | G53: =IF(F53<B53,(B53-F53)*('Rozpis úklidu'!Q39/B53)*2,0) -> 0
A54: =CONCATENATE('Rozpis úklidu'!A40," / ",'Rozpis úklidu'!F40) -> buňka (skladba 2 + 3 s balkónem): kuchyňka + vstupní prostory / měsíčně | B54: ='Rozpis úklidu'!D40 -> 1 | C54: =IF('Rozpis úklidu'!N40=0,'Rozpis úklidu'!M40*B54/60,'Rozpis úklidu'!N40*B54/60) -> 0.4166666667 | D54: ='Rozpis úklidu'!L40 -> Typová činnost č.: 3 a 5 | E54: ='Rozpis úklidu'!Q40*(IF(F54<B54,F54/B54,1)) -> 0 | F54: 1 | G54: =IF(F54<B54,(B54-F54)*('Rozpis úklidu'!Q40/B54)*2,0) -> 0
A55: =CONCATENATE('Rozpis úklidu'!A41," / ",'Rozpis úklidu'!F41) -> buňka (skladba 2 + 3 s balkónem): WC / měsíčně | B55: ='Rozpis úklidu'!D41 -> 1 | C55: =IF('Rozpis úklidu'!N41=0,'Rozpis úklidu'!M41*B55/60,'Rozpis úklidu'!N41*B55/60) -> 0.1666666667 | D55: ='Rozpis úklidu'!L41 -> Typová činnost č.: 11 | E55: ='Rozpis úklidu'!Q41*(IF(F55<B55,F55/B55,1)) -> 0 | F55: 1 | G55: =IF(F55<B55,(B55-F55)*('Rozpis úklidu'!Q41/B55)*2,0) -> 0
A56: =CONCATENATE('Rozpis úklidu'!A42," / ",'Rozpis úklidu'!F42) -> buňka (skladba 2 + 3 s balkónem): koupelna se sprchou / měsíčně | B56: ='Rozpis úklidu'!D42 -> 1 | C56: =IF('Rozpis úklidu'!N42=0,'Rozpis úklidu'!M42*B56/60,'Rozpis úklidu'!N42*B56/60) -> 0.1666666667 | D56: ='Rozpis úklidu'!L42 -> Typová činnost č.: 12 | E56: ='Rozpis úklidu'!Q42*(IF(F56<B56,F56/B56,1)) -> 0 | F56: 1 | G56: =IF(F56<B56,(B56-F56)*('Rozpis úklidu'!Q42/B56)*2,0) -> 0
A57: =CONCATENATE('Rozpis úklidu'!A43," / ",'Rozpis úklidu'!F43) -> buňka (skladba 2 + 3 s balkónem): dvoulůžkový pokoj / měsíčně | B57: ='Rozpis úklidu'!D43 -> 1 | C57: =IF('Rozpis úklidu'!N43=0,'Rozpis úklidu'!M43*B57/60,'Rozpis úklidu'!N43*B57/60) -> 0.25 | D57: ='Rozpis úklidu'!L43 -> Typová činnost č.: 2 a 8 | E57: ='Rozpis úklidu'!Q43*(IF(F57<B57,F57/B57,1)) -> 0 | F57: =B57 -> 1 | G57: =IF(F57<B57,(B57-F57)*('Rozpis úklidu'!Q43/B57)*2,0) -> 0
A58: =CONCATENATE('Rozpis úklidu'!A44," / ",'Rozpis úklidu'!F44) -> buňka (skladba 2 + 3 s balkónem): třílůžkový pokoj / měsíčně | B58: ='Rozpis úklidu'!D44 -> 1 | C58: =IF('Rozpis úklidu'!N44=0,'Rozpis úklidu'!M44*B58/60,'Rozpis úklidu'!N44*B58/60) -> 0.3333333333 | D58: ='Rozpis úklidu'!L44 -> Typová činnost č.: 2 a 8 | E58: ='Rozpis úklidu'!Q44*(IF(F58<B58,F58/B58,1)) -> 0 | F58: 1 | G58: =IF(F58<B58,(B58-F58)*('Rozpis úklidu'!Q44/B58)*2,0) -> 0
A59: =CONCATENATE('Rozpis úklidu'!A45," / ",'Rozpis úklidu'!F45," (",'Rozpis úklidu'!D45,")") -> emailové nátěry - schodiště / čtvrtletně (31) | B59: 0 | C59: =IF('Rozpis úklidu'!N45=0,'Rozpis úklidu'!M45*B59/60,'Rozpis úklidu'!N45*B59/60) -> 0 | D59: ='Rozpis úklidu'!L45 -> umýt | E59: =IF(B59>0,'Rozpis úklidu'!P45*F59,0) -> 0 | F59: 0 | G59: =IF(F59<B59,(B59-F59)*'Rozpis úklidu'!P45*2,0) -> 0
A60: =CONCATENATE('Rozpis úklidu'!A46," / ",'Rozpis úklidu'!F46," (",'Rozpis úklidu'!D46,")") -> emailové nátěry - chodba za výtahy / čtvrtletně (34) | B60: 0 | C60: =IF('Rozpis úklidu'!N46=0,'Rozpis úklidu'!M46*B60/60,'Rozpis úklidu'!N46*B60/60) -> 0 | D60: ='Rozpis úklidu'!L46 -> umýt | E60: =IF(B60>0,'Rozpis úklidu'!P46*F60,0) -> 0 | F60: 0 | G60: =IF(F60<B60,(B60-F60)*'Rozpis úklidu'!P46*2,0) -> 0
A61: =CONCATENATE('Rozpis úklidu'!A47," / ",'Rozpis úklidu'!F47," (",'Rozpis úklidu'!D47,")") -> emailové nátěry - patro chodba / čtvrtletně (10) | B61: 0 | C61: =IF('Rozpis úklidu'!N47=0,'Rozpis úklidu'!M47*B61/60,'Rozpis úklidu'!N47*B61/60) -> 0 | D61: ='Rozpis úklidu'!L47 -> umýt | E61: =IF(B61>0,'Rozpis úklidu'!P47*F61,0) -> 0 | F61: 0 | G61: =IF(F61<B61,(B61-F61)*'Rozpis úklidu'!P47*2,0) -> 0
A62: =CONCATENATE('Rozpis úklidu'!A48," / ",'Rozpis úklidu'!F48," (",'Rozpis úklidu'!D48,")") -> emailové nátěry - patro chodba téčko / čtvrtletně (11) | B62: 0 | C62: =IF('Rozpis úklidu'!N48=0,'Rozpis úklidu'!M48*B62/60,'Rozpis úklidu'!N48*B62/60) -> 0 | D62: ='Rozpis úklidu'!L48 -> umýt | E62: =IF(B62>0,'Rozpis úklidu'!P48*F62,0) -> 0 | F62: 0 | G62: =IF(F62<B62,(B62-F62)*'Rozpis úklidu'!P48*2,0) -> 0
A63: =CONCATENATE('Rozpis úklidu'!A49," / ",'Rozpis úklidu'!F49," (",'Rozpis úklidu'!D49,")") -> emailové nátěry - chodba 1PP / čtvrtletně (1) | B63: 0 | C63: =IF('Rozpis úklidu'!N49=0,'Rozpis úklidu'!M49*B63/60,'Rozpis úklidu'!N49*B63/60) -> 0 | D63: ='Rozpis úklidu'!L49 -> umýt | E63: =IF(B63>0,'Rozpis úklidu'!P49*F63,0) -> 0 | F63: 0 | G63: =IF(F63<B63,(B63-F63)*'Rozpis úklidu'!P49*2,0) -> 0
A64: =CONCATENATE('Rozpis úklidu'!A50," / ",'Rozpis úklidu'!F50," (",'Rozpis úklidu'!D50,")") -> emailové nátěry - chodba 2PP / čtvrtletně (1) | B64: 0 | C64: =IF('Rozpis úklidu'!N50=0,'Rozpis úklidu'!M50*B64/60,'Rozpis úklidu'!N50*B64/60) -> 0 | D64: ='Rozpis úklidu'!L50 -> umýt | E64: =IF(B64>0,'Rozpis úklidu'!P50*F64,0) -> 0 | F64: 0 | G64: =IF(F64<B64,(B64-F64)*'Rozpis úklidu'!P50*2,0) -> 0
A65: =CONCATENATE('Rozpis úklidu'!A51," / ",'Rozpis úklidu'!F51," (",'Rozpis úklidu'!D51,")") -> prázdninový sklad + balkon ( 6m2) / ročně (1) | B65: 0 | C65: =IF('Rozpis úklidu'!N51=0,'Rozpis úklidu'!M51*B65/60,'Rozpis úklidu'!N51*B65/60) -> 0 | D65: ='Rozpis úklidu'!L51 -> Typová činnost č.: 2 a 3 | E65: =IF(B65>0,'Rozpis úklidu'!P51*F65,0) -> 0 | F65: 0 | G65: =IF(F65<B65,(B65-F65)*'Rozpis úklidu'!P51*2,0) -> 0
A66: =CONCATENATE('Rozpis úklidu'!A52," / ",'Rozpis úklidu'!F52," (",'Rozpis úklidu'!D52,")") -> kolárna / ročně (1) | B66: 0 | C66: =IF('Rozpis úklidu'!N52=0,'Rozpis úklidu'!M52*B66/60,'Rozpis úklidu'!N52*B66/60) -> 0 | D66: ='Rozpis úklidu'!L52 -> Typová činnost č.: 3 | E66: =IF(B66>0,'Rozpis úklidu'!P52*F66,0) -> 0 | F66: 0 | G66: =IF(F66<B66,(B66-F66)*'Rozpis úklidu'!P52*2,0) -> 0
A67: =CONCATENATE('Rozpis úklidu'!A53," / ",'Rozpis úklidu'!F53," (",'Rozpis úklidu'!D53,")") -> Okna velká / ročně (779) | B67: 0 | C67: =IF('Rozpis úklidu'!N53=0,'Rozpis úklidu'!M53*B67/60,'Rozpis úklidu'!N53*B67/60) -> 0 | D67: ='Rozpis úklidu'!L53 -> umýt skla, rámy, parapety; vyleštit skla | E67: =IF(B67>0,'Rozpis úklidu'!P53*F67,0) -> 0 | F67: 0 | G67: =IF(F67<B67,(B67-F67)*'Rozpis úklidu'!P53*2,0) -> 0
A68: =CONCATENATE('Rozpis úklidu'!A54," / ",'Rozpis úklidu'!F54," (",'Rozpis úklidu'!D54,")") -> Okna malá / ročně (357) | B68: 0 | C68: =IF('Rozpis úklidu'!N54=0,'Rozpis úklidu'!M54*B68/60,'Rozpis úklidu'!N54*B68/60) -> 0 | D68: ='Rozpis úklidu'!L54 -> umýt skla, rámy, parapety; vyleštit skla | E68: =IF(B68>0,'Rozpis úklidu'!P54*F68,0) -> 0 | F68: 0 | G68: =IF(F68<B68,(B68-F68)*'Rozpis úklidu'!P54*2,0) -> 0
A69: =CONCATENATE('Rozpis úklidu'!A55," / ",'Rozpis úklidu'!F55," (",'Rozpis úklidu'!D55,")") -> Okna - balkonové dveře / ročně (253) | B69: 0 | C69: =IF('Rozpis úklidu'!N55=0,'Rozpis úklidu'!M55*B69/60,'Rozpis úklidu'!N55*B69/60) -> 0 | D69: ='Rozpis úklidu'!L55 -> umýt skla, rámy, parapety; vyleštit skla | E69: =IF(B69>0,'Rozpis úklidu'!P55*F69,0) -> 0 | F69: 0 | G69: =IF(F69<B69,(B69-F69)*'Rozpis úklidu'!P55*2,0) -> 0
B70: Celkem hodin prům. za den | C70: =SUM(C51:C69)/21 -> 0.8134920635 | D70: K FAKTURACI CELKEM: | E70: =SUM(E51:E69) -> 0 | G70: =SUM(G51:G69) -> 0
A71: Podpis vedoucí směny: | D71: Podpis zástupce vedení koleje:
A73: Karta úklidu | D73: ='Rozpis úklidu'!$A$1 -> kolej: Blanice, VŠE
A74: SEZONNÍ ÚKLID MĚSÍC: | B74: =MONTH(D74) -> 9 | D74: =(NOW()) -> 2020-09-22T14:55:12.410
A75: ='Rozpis úklidu'!$A$3 -> Úklidová jednotka | B75: ='Rozpis úklidu'!$D$3 -> počet úklidových jednotek | C75: =$C$4 -> Doba úklidu [hod.] | D75: ='Rozpis úklidu'!$L$3 -> Popis činnosti | E75: ='Rozpis úklidu'!$Q$3 -> cena celkem za všechny úklidové jednotky (prac. dny) [Kč] | F75: Správně uklizené jednotky | G75: Smluvní pokuta [Kč] | H75: Poznámka
A76: =CONCATENATE('Rozpis úklidu'!A56," / ",'Rozpis úklidu'!F56," (",'Rozpis úklidu'!D56,")") -> přebrání pokoje po ubytovaných / sezonně (520) | B76: 0 | C76: =IF('Rozpis úklidu'!N56=0,'Rozpis úklidu'!M56*B76/60,'Rozpis úklidu'!N56*B76/60) -> 0 | D76: ='Rozpis úklidu'!L56 -> Typová činnost č.: 10 | E76: =IF(B76>0,'Rozpis úklidu'!P56*F76,0) -> 0 | F76: 0 | G76: =IF(F76<B76,(B76-F76)*'Rozpis úklidu'!P56*2,0) -> 0
A77: =CONCATENATE('Rozpis úklidu'!A57," / ",'Rozpis úklidu'!F57," (",'Rozpis úklidu'!D57,")") -> buňka pro ZTP studenty: kuchyňka / sezonně (2) | B77: 0 | C77: =IF('Rozpis úklidu'!N57=0,'Rozpis úklidu'!M57*B77/60,'Rozpis úklidu'!N57*B77/60) -> 0 | D77: ='Rozpis úklidu'!L57 -> Typová činnost č.: 5 | E77: =IF(B77>0,'Rozpis úklidu'!P57*F77,0) -> 0 | F77: 0 | G77: =IF(F77<B77,(B77-F77)*'Rozpis úklidu'!P57*2,0) -> 0
A78: =CONCATENATE('Rozpis úklidu'!A58," / ",'Rozpis úklidu'!F58," (",'Rozpis úklidu'!D58,")") -> buňka pro ZTP studenty: vstupní prostory / sezonně (1) | B78: 0 | C78: =IF('Rozpis úklidu'!N58=0,'Rozpis úklidu'!M58*B78/60,'Rozpis úklidu'!N58*B78/60) -> 0 | D78: ='Rozpis úklidu'!L58 -> Typová činnost č.: 1 | E78: =IF(B78>0,'Rozpis úklidu'!P58*F78,0) -> 0 | F78: 0 | G78: =IF(F78<B78,(B78-F78)*'Rozpis úklidu'!P58*2,0) -> 0
A79: =CONCATENATE('Rozpis úklidu'!A59," / ",'Rozpis úklidu'!F59," (",'Rozpis úklidu'!D59,")") -> buňka pro ZTP studenty: sociální zařízení / sezonně (1) | B79: 0 | C79: =IF('Rozpis úklidu'!N59=0,'Rozpis úklidu'!M59*B79/60,'Rozpis úklidu'!N59*B79/60) -> 0 | D79: ='Rozpis úklidu'!L59 -> Typová činnost č.: 11 a 12 | E79: =IF(B79>0,'Rozpis úklidu'!P59*F79,0) -> 0 | F79: 0 | G79: =IF(F79<B79,(B79-F79)*'Rozpis úklidu'!P59*2,0) -> 0
A80: =CONCATENATE('Rozpis úklidu'!A60," / ",'Rozpis úklidu'!F60," (",'Rozpis úklidu'!D60,")") -> buňka pro ZTP studenty: pokoj / sezonně (4) | B80: 0 | C80: =IF('Rozpis úklidu'!N60=0,'Rozpis úklidu'!M60*B80/60,'Rozpis úklidu'!N60*B80/60) -> 0 | D80: ='Rozpis úklidu'!L60 -> Typová činnost č.: 6 | E80: =IF(B80>0,'Rozpis úklidu'!P60*F80,0) -> 0 | F80: 0 | G80: =IF(F80<B80,(B80-F80)*'Rozpis úklidu'!P60*2,0) -> 0
A81: =CONCATENATE('Rozpis úklidu'!A71," / ",'Rozpis úklidu'!F71," (",'Rozpis úklidu'!D71,")") -> buňka student (skladba 1 + 2): kuchyňka + vstupní prostory / sezonně (65) | B81: 0 | C81: =IF('Rozpis úklidu'!N71=0,'Rozpis úklidu'!M71*B81/60,'Rozpis úklidu'!N71*B81/60) -> 0 | D81: ='Rozpis úklidu'!L71 -> Typová činnost č.: 3 a 5 | E81: =IF(B81>0,'Rozpis úklidu'!P71*F81,0) -> 0 | F81: 0 | G81: =IF(F81<B81,(B81-F81)*'Rozpis úklidu'!P71*2,0) -> 0
A82: =CONCATENATE('Rozpis úklidu'!A72," / ",'Rozpis úklidu'!F72," (",'Rozpis úklidu'!D72,")") -> buňka student (skladba 1 + 2): komora / sezonně (65) | B82: 0 | C82: =IF('Rozpis úklidu'!N72=0,'Rozpis úklidu'!M72*B82/60,'Rozpis úklidu'!N72*B82/60) -> 0 | D82: ='Rozpis úklidu'!L72 -> Typová činnost č.: 3 | E82: =IF(B82>0,'Rozpis úklidu'!P72*F82,0) -> 0 | F82: 0 | G82: =IF(F82<B82,(B82-F82)*'Rozpis úklidu'!P72*2,0) -> 0
A83: =CONCATENATE('Rozpis úklidu'!A73," / ",'Rozpis úklidu'!F73," (",'Rozpis úklidu'!D73,")") -> buňka student (skladba 1 + 2): WC / sezonně (65) | B83: 0 | C83: =IF('Rozpis úklidu'!N73=0,'Rozpis úklidu'!M73*B83/60,'Rozpis úklidu'!N73*B83/60) -> 0 | D83: ='Rozpis úklidu'!L73 -> Typová činnost č.: 11 | E83: =IF(B83>0,'Rozpis úklidu'!P73*F83,0) -> 0 | F83: 0 | G83: =IF(F83<B83,(B83-F83)*'Rozpis úklidu'!P73*2,0) -> 0
A84: =CONCATENATE('Rozpis úklidu'!A74," / ",'Rozpis úklidu'!F74," (",'Rozpis úklidu'!D74,")") -> buňka student (skladba 1 + 2): koupelna se sprchou / sezonně (65) | B84: 0 | C84: =IF('Rozpis úklidu'!N74=0,'Rozpis úklidu'!M74*B84/60,'Rozpis úklidu'!N74*B84/60) -> 0 | D84: ='Rozpis úklidu'!L74 -> Typová činnost č.: 12 | E84: =IF(B84>0,'Rozpis úklidu'!P74*F84,0) -> 0 | F84: 0 | G84: =IF(F84<B84,(B84-F84)*'Rozpis úklidu'!P74*2,0) -> 0
A85: =CONCATENATE('Rozpis úklidu'!A75," / ",'Rozpis úklidu'!F75," (",'Rozpis úklidu'!D75,")") -> buňka student (skladba 1 + 2): jednolůžkový pokoj / sezonně (65) | B85: 0 | C85: =IF('Rozpis úklidu'!N75=0,'Rozpis úklidu'!M75*B85/60,'Rozpis úklidu'!N75*B85/60) -> 0 | D85: ='Rozpis úklidu'!L75 -> Typová činnost č.: 6 | E85: =IF(B85>0,'Rozpis úklidu'!P75*F85,0) -> 0 | F85: 0 | G85: =IF(F85<B85,(B85-F85)*'Rozpis úklidu'!P75*2,0) -> 0
A86: =CONCATENATE('Rozpis úklidu'!A76," / ",'Rozpis úklidu'!F76," (",'Rozpis úklidu'!D76,")") -> buňka student (skladba 1 + 2): dvoulůžkový pokoj / sezonně (65) | B86: 0 | C86: =IF('Rozpis úklidu'!N76=0,'Rozpis úklidu'!M76*B86/60,'Rozpis úklidu'!N76*B86/60) -> 0 | D86: ='Rozpis úklidu'!L76 -> Typová činnost č.: 6 | E86: =IF(B86>0,'Rozpis úklidu'!P76*F86,0) -> 0 | F86: 0 | G86: =IF(F86<B86,(B86-F86)*'Rozpis úklidu'!P76*2,0) -> 0
A87: =CONCATENATE('Rozpis úklidu'!A91," / ",'Rozpis úklidu'!F91," (",'Rozpis úklidu'!D91,")") -> buňka student (skladba 2+ 2): kuchyňka + vstupní prostory / sezonně (94) | B87: 0 | C87: =IF('Rozpis úklidu'!N91=0,'Rozpis úklidu'!M91*B87/60,'Rozpis úklidu'!N91*B87/60) -> 0 | D87: ='Rozpis úklidu'!L91 -> Typová činnost č.: 3 a 5 | E87: =IF(B87>0,'Rozpis úklidu'!P91*F87,0) -> 0 | F87: 0 | G87: =IF(F87<B87,(B87-F87)*'Rozpis úklidu'!P91*2,0) -> 0
A88: =CONCATENATE('Rozpis úklidu'!A92," / ",'Rozpis úklidu'!F92," (",'Rozpis úklidu'!D92,")") -> buňka student (skladba 2+ 2): komora / sezonně (94) | B88: 0 | C88: =IF('Rozpis úklidu'!N92=0,'Rozpis úklidu'!M92*B88/60,'Rozpis úklidu'!N92*B88/60) -> 0 | D88: ='Rozpis úklidu'!L92 -> Typová činnost č.: 3 | E88: =IF(B88>0,'Rozpis úklidu'!P92*F88,0) -> 0 | F88: 0 | G88: =IF(F88<B88,(B88-F88)*'Rozpis úklidu'!P92*2,0) -> 0
A89: =CONCATENATE('Rozpis úklidu'!A93," / ",'Rozpis úklidu'!F93," (",'Rozpis úklidu'!D93,")") -> buňka student (skladba 2+ 2): WC / sezonně (94) | B89: 0 | C89: =IF('Rozpis úklidu'!N93=0,'Rozpis úklidu'!M93*B89/60,'Rozpis úklidu'!N93*B89/60) -> 0 | D89: ='Rozpis úklidu'!L93 -> Typová činnost č.: 11 | E89: =IF(B89>0,'Rozpis úklidu'!P93*F89,0) -> 0 | F89: 0 | G89: =IF(F89<B89,(B89-F89)*'Rozpis úklidu'!P93*2,0) -> 0
A90: =CONCATENATE('Rozpis úklidu'!A94," / ",'Rozpis úklidu'!F94," (",'Rozpis úklidu'!D94,")") -> buňka student (skladba 2+ 2): koupelna se sprchou / sezonně (94) | B90: 0 | C90: =IF('Rozpis úklidu'!N94=0,'Rozpis úklidu'!M94*B90/60,'Rozpis úklidu'!N94*B90/60) -> 0 | D90: ='Rozpis úklidu'!L94 -> Typová činnost č.: 12 | E90: =IF(B90>0,'Rozpis úklidu'!P94*F90,0) -> 0 | F90: 0 | G90: =IF(F90<B90,(B90-F90)*'Rozpis úklidu'!P94*2,0) -> 0
A91: =CONCATENATE('Rozpis úklidu'!A95," / ",'Rozpis úklidu'!F95," (",'Rozpis úklidu'!D95,")") -> buňka student (skladba 2+ 2): pokoj / sezonně (188) | B91: 0 | C91: =IF('Rozpis úklidu'!N95=0,'Rozpis úklidu'!M95*B91/60,'Rozpis úklidu'!N95*B91/60) -> 0 | D91: ='Rozpis úklidu'!L95 -> Typová činnost č.: 6 | E91: =IF(B91>0,'Rozpis úklidu'!P95*F91,0) -> 0 | F91: 0 | G91: =IF(F91<B91,(B91-F91)*'Rozpis úklidu'!P95*2,0) -> 0
A92: =CONCATENATE('Rozpis úklidu'!A109," / ",'Rozpis úklidu'!F109," (",'Rozpis úklidu'!D109,")") -> buňka student (skladba 2 + 2 s balkónem): kuchyňka + vstupní prostory / sezonně (99) | B92: 0 | C92: =IF('Rozpis úklidu'!N109=0,'Rozpis úklidu'!M109*B92/60,'Rozpis úklidu'!N109*B92/60) -> 0 | D92: ='Rozpis úklidu'!L109 -> Typová činnost č.: 3 a 5 | E92: =IF(B92>0,'Rozpis úklidu'!P109*F92,0) -> 0 | F92: 0 | G92: =IF(F92<B92,(B92-F92)*'Rozpis úklidu'!P109*2,0) -> 0
A93: =CONCATENATE('Rozpis úklidu'!A110," / ",'Rozpis úklidu'!F110," (",'Rozpis úklidu'!D110,")") -> buňka student (skladba 2 + 2 s balkónem): komora / sezonně (99) | B93: 0 | C93: =IF('Rozpis úklidu'!N110=0,'Rozpis úklidu'!M110*B93/60,'Rozpis úklidu'!N110*B93/60) -> 0 | D93: ='Rozpis úklidu'!L110 -> Typová činnost č.: 3 | E93: =IF(B93>0,'Rozpis úklidu'!P110*F93,0) -> 0 | F93: 0 | G93: =IF(F93<B93,(B93-F93)*'Rozpis úklidu'!P110*2,0) -> 0
A94: =CONCATENATE('Rozpis úklidu'!A111," / ",'Rozpis úklidu'!F111," (",'Rozpis úklidu'!D111,")") -> buňka student (skladba 2 + 2 s balkónem): WC / sezonně (99) | B94: 0 | C94: =IF('Rozpis úklidu'!N111=0,'Rozpis úklidu'!M111*B94/60,'Rozpis úklidu'!N111*B94/60) -> 0 | D94: ='Rozpis úklidu'!L111 -> Typová činnost č.: 11 | E94: =IF(B94>0,'Rozpis úklidu'!P111*F94,0) -> 0 | F94: 0 | G94: =IF(F94<B94,(B94-F94)*'Rozpis úklidu'!P111*2,0) -> 0
A95: =CONCATENATE('Rozpis úklidu'!A112," / ",'Rozpis úklidu'!F112," (",'Rozpis úklidu'!D112,")") -> buňka student (skladba 2 + 2 s balkónem): koupelna se sprchou / sezonně (99) | B95: 0 | C95: =IF('Rozpis úklidu'!N112=0,'Rozpis úklidu'!M112*B95/60,'Rozpis úklidu'!N112*B95/60) -> 0 | D95: ='Rozpis úklidu'!L112 -> Typová činnost č.: 12 | E95: =IF(B95>0,'Rozpis úklidu'!P112*F95,0) -> 0 | F95: 0 | G95: =IF(F95<B95,(B95-F95)*'Rozpis úklidu'!P112*2,0) -> 0
A96: =CONCATENATE('Rozpis úklidu'!A113," / ",'Rozpis úklidu'!F113," (",'Rozpis úklidu'!D113,")") -> buňka student (skladba 2 + 2 s balkónem): pokoj / sezonně (198) | B96: 0 | C96: =IF('Rozpis úklidu'!N113=0,'Rozpis úklidu'!M113*B96/60,'Rozpis úklidu'!N113*B96/60) -> 0 | D96: ='Rozpis úklidu'!L113 -> Typová činnost č.: 6 | E96: =IF(B96>0,'Rozpis úklidu'!P113*F96,0) -> 0 | F96: 0 | G96: =IF(F96<B96,(B96-F96)*'Rozpis úklidu'!P113*2,0) -> 0
A97: =CONCATENATE('Rozpis úklidu'!A114," / ",'Rozpis úklidu'!F114," (",'Rozpis úklidu'!D114,")") -> buňka student (skladba 2 + 2 s balkónem): balkón / sezonně (99) | B97: 0 | C97: =IF('Rozpis úklidu'!N114=0,'Rozpis úklidu'!M114*B97/60,'Rozpis úklidu'!N114*B97/60) -> 0 | D97: ='Rozpis úklidu'!L114 -> Typový úklid č.: 2 | E97: =IF(B97>0,'Rozpis úklidu'!P114*F97,0) -> 0 | F97: 0 | G97: =IF(F97<B97,(B97-F97)*'Rozpis úklidu'!P114*2,0) -> 0
A98: =CONCATENATE('Rozpis úklidu'!A129," / ",'Rozpis úklidu'!F129," (",'Rozpis úklidu'!D129,")") -> Položení povlečení na postele / sezonně (990) | B98: 0 | C98: =IF('Rozpis úklidu'!N129=0,'Rozpis úklidu'!M129*B98/60,'Rozpis úklidu'!N129*B98/60) -> 0 | D98: ='Rozpis úklidu'!L129 -> Položit na každou postel povleční polštáře, deky a prostěradla. | E98: =IF(B98>0,'Rozpis úklidu'!P129*F98,0) -> 0 | F98: 0 | G98: =IF(F98<B98,(B98-F98)*'Rozpis úklidu'!P129*2,0) -> 0
B99: Celkem hodin | C99: =SUM(C76:C98) -> 0 | D99: K FAKTURACI CELKEM: | E99: =SUM(E76:E98) -> 0 | G99: =SUM(G76:G98) -> 0
A100: Podpis vedoucí směny: | D100: Podpis zástupce vedení koleje:
A102: Karta úklidu | D102: ='Rozpis úklidu'!$A$1 -> kolej: Blanice, VŠE
A103: ÚKLID O VÍKENDU DNE: | B103: =(NOW()) -> 2020-09-22T14:55:12.410
A104: ='Rozpis úklidu'!$A$3 -> Úklidová jednotka | B104: ='Rozpis úklidu'!$D$3 -> počet úklidových jednotek | C104: =$C$4 -> Doba úklidu [hod.] | D104: ='Rozpis úklidu'!$L$3 -> Popis činnosti | E104: cena celkem za všechny úklidové jednotky (VÍKEND) [Kč] | F104: Správně uklizené jednotky | G104: Smluvní pokuta [Kč] | H104: Poznámka
A105: =CONCATENATE('Rozpis úklidu'!A57," / ",'Rozpis úklidu'!F57," (",'Rozpis úklidu'!D57,")") -> buňka pro ZTP studenty: kuchyňka / sezonně (2) | B105: 0 | C105: =IF('Rozpis úklidu'!N57=0,'Rozpis úklidu'!M57*B105/60,'Rozpis úklidu'!N57*B105/60) -> 0 | D105: ='Rozpis úklidu'!L57 -> Typová činnost č.: 5 | E105: =IF(B105>0,'Rozpis úklidu'!P57*F105*'Základní údaje'!$C$11,0) -> 0 | F105: 0 | G105: =IF(F105<B105,(B105-F105)*'Rozpis úklidu'!P57*2*'Základní údaje'!$C$11,0) -> 0
A106: =CONCATENATE('Rozpis úklidu'!A58," / ",'Rozpis úklidu'!F58," (",'Rozpis úklidu'!D58,")") -> buňka pro ZTP studenty: vstupní prostory / sezonně (1) | B106: 0 | C106: =IF('Rozpis úklidu'!N58=0,'Rozpis úklidu'!M58*B106/60,'Rozpis úklidu'!N58*B106/60) -> 0 | D106: ='Rozpis úklidu'!L58 -> Typová činnost č.: 1 | E106: =IF(B106>0,'Rozpis úklidu'!P58*F106*'Základní údaje'!$C$11,0) -> 0 | F106: 0 | G106: =IF(F106<B106,(B106-F106)*'Rozpis úklidu'!P58*2*'Základní údaje'!$C$11,0) -> 0
A107: =CONCATENATE('Rozpis úklidu'!A59," / ",'Rozpis úklidu'!F59," (",'Rozpis úklidu'!D59,")") -> buňka pro ZTP studenty: sociální zařízení / sezonně (1) | B107: 0 | C107: =IF('Rozpis úklidu'!N59=0,'Rozpis úklidu'!M59*B107/60,'Rozpis úklidu'!N59*B107/60) -> 0 | D107: ='Rozpis úklidu'!L59 -> Typová činnost č.: 11 a 12 | E107: =IF(B107>0,'Rozpis úklidu'!P59*F107*'Základní údaje'!$C$11,0) -> 0 | F107: 0 | G107: =IF(F107<B107,(B107-F107)*'Rozpis úklidu'!P59*2*'Základní údaje'!$C$11,0) -> 0
A108: =CONCATENATE('Rozpis úklidu'!A60," / ",'Rozpis úklidu'!F60," (",'Rozpis úklidu'!D60,")") -> buňka pro ZTP studenty: pokoj / sezonně (4) | B108: 0 | C108: =IF('Rozpis úklidu'!N60=0,'Rozpis úklidu'!M60*B108/60,'Rozpis úklidu'!N60*B108/60) -> 0 | D108: ='Rozpis úklidu'!L60 -> Typová činnost č.: 6 | E108: =IF(B108>0,'Rozpis úklidu'!P60*F108*'Základní údaje'!$C$11,0) -> 0 | F108: 0 | G108: =IF(F108<B108,(B108-F108)*'Rozpis úklidu'!P60*2*'Základní údaje'!$C$11,0) -> 0
A109: =CONCATENATE('Rozpis úklidu'!A71," / ",'Rozpis úklidu'!F71," (",'Rozpis úklidu'!D71,")") -> buňka student (skladba 1 + 2): kuchyňka + vstupní prostory / sezonně (65) | B109: 0 | C109: =IF('Rozpis úklidu'!N71=0,'Rozpis úklidu'!M71*B109/60,'Rozpis úklidu'!N71*B109/60) -> 0 | D109: ='Rozpis úklidu'!L71 -> Typová činnost č.: 3 a 5 | E109: =IF(B109>0,'Rozpis úklidu'!P71*F109*'Základní údaje'!$C$11,0) -> 0 | F109: 0 | G109: =IF(F109<B109,(B109-F109)*'Rozpis úklidu'!P71*2*'Základní údaje'!$C$11,0) -> 0
A110: =CONCATENATE('Rozpis úklidu'!A72," / ",'Rozpis úklidu'!F72," (",'Rozpis úklidu'!D72,")") -> buňka student (skladba 1 + 2): komora / sezonně (65) | B110: 0 | C110: =IF('Rozpis úklidu'!N72=0,'Rozpis úklidu'!M72*B110/60,'Rozpis úklidu'!N72*B110/60) -> 0 | D110: ='Rozpis úklidu'!L72 -> Typová činnost č.: 3 | E110: =IF(B110>0,'Rozpis úklidu'!P72*F110*'Základní údaje'!$C$11,0) -> 0 | F110: 0 | G110: =IF(F110<B110,(B110-F110)*'Rozpis úklidu'!P72*2*'Základní údaje'!$C$11,0) -> 0
A111: =CONCATENATE('Rozpis úklidu'!A73," / ",'Rozpis úklidu'!F73," (",'Rozpis úklidu'!D73,")") -> buňka student (skladba 1 + 2): WC / sezonně (65) | B111: 0 | C111: =IF('Rozpis úklidu'!N73=0,'Rozpis úklidu'!M73*B111/60,'Rozpis úklidu'!N73*B111/60) -> 0 | D111: ='Rozpis úklidu'!L73 -> Typová činnost č.: 11 | E111: =IF(B111>0,'Rozpis úklidu'!P73*F111*'Základní údaje'!$C$11,0) -> 0 | F111: 0 | G111: =IF(F111<B111,(B111-F111)*'Rozpis úklidu'!P73*2*'Základní údaje'!$C$11,0) -> 0
A112: =CONCATENATE('Rozpis úklidu'!A74," / ",'Rozpis úklidu'!F74," (",'Rozpis úklidu'!D74,")") -> buňka student (skladba 1 + 2): koupelna se sprchou / sezonně (65) | B112: 0 | C112: =IF('Rozpis úklidu'!N74=0,'Rozpis úklidu'!M74*B112/60,'Rozpis úklidu'!N74*B112/60) -> 0 | D112: ='Rozpis úklidu'!L74 -> Typová činnost č.: 12 | E112: =IF(B112>0,'Rozpis úklidu'!P74*F112*'Základní údaje'!$C$11,0) -> 0 | F112: 0 | G112: =IF(F112<B112,(B112-F112)*'Rozpis úklidu'!P74*2*'Základní údaje'!$C$11,0) -> 0
A113: =CONCATENATE('Rozpis úklidu'!A75," / ",'Rozpis úklidu'!F75," (",'Rozpis úklidu'!D75,")") -> buňka student (skladba 1 + 2): jednolůžkový pokoj / sezonně (65) | B113: 0 | C113: =IF('Rozpis úklidu'!N75=0,'Rozpis úklidu'!M75*B113/60,'Rozpis úklidu'!N75*B113/60) -> 0 | D113: ='Rozpis úklidu'!L75 -> Typová činnost č.: 6 | E113: =IF(B113>0,'Rozpis úklidu'!P75*F113*'Základní údaje'!$C$11,0) -> 0 | F113: 0 | G113: =IF(F113<B113,(B113-F113)*'Rozpis úklidu'!P75*2*'Základní údaje'!$C$11,0) -> 0
A114: =CONCATENATE('Rozpis úklidu'!A76," / ",'Rozpis úklidu'!F76," (",'Rozpis úklidu'!D76,")") -> buňka student (skladba 1 + 2): dvoulůžkový pokoj / sezonně (65) | B114: 0 | C114: =IF('Rozpis úklidu'!N76=0,'Rozpis úklidu'!M76*B114/60,'Rozpis úklidu'!N76*B114/60) -> 0 | D114: ='Rozpis úklidu'!L76 -> Typová činnost č.: 6 | E114: =IF(B114>0,'Rozpis úklidu'!P76*F114*'Základní údaje'!$C$11,0) -> 0 | F114: 0 | G114: =IF(F114<B114,(B114-F114)*'Rozpis úklidu'!P76*2*'Základní údaje'!$C$11,0) -> 0
A115: =CONCATENATE('Rozpis úklidu'!A91," / ",'Rozpis úklidu'!F91," (",'Rozpis úklidu'!D91,")") -> buňka student (skladba 2+ 2): kuchyňka + vstupní prostory / sezonně (94) | B115: 0 | C115: =IF('Rozpis úklidu'!N91=0,'Rozpis úklidu'!M91*B115/60,'Rozpis úklidu'!N91*B115/60) -> 0 | D115: ='Rozpis úklidu'!L91 -> Typová činnost č.: 3 a 5 | E115: =IF(B115>0,'Rozpis úklidu'!P91*F115*'Základní údaje'!$C$11,0) -> 0 | F115: 0 | G115: =IF(F115<B115,(B115-F115)*'Rozpis úklidu'!P91*2*'Základní údaje'!$C$11,0) -> 0
A116: =CONCATENATE('Rozpis úklidu'!A92," / ",'Rozpis úklidu'!F92," (",'Rozpis úklidu'!D92,")") -> buňka student (skladba 2+ 2): komora / sezonně (94) | B116: 0 | C116: =IF('Rozpis úklidu'!N92=0,'Rozpis úklidu'!M92*B116/60,'Rozpis úklidu'!N92*B116/60) -> 0 | D116: ='Rozpis úklidu'!L92 -> Typová činnost č.: 3 | E116: =IF(B116>0,'Rozpis úklidu'!P92*F116*'Základní údaje'!$C$11,0) -> 0 | F116: 0 | G116: =IF(F116<B116,(B116-F116)*'Rozpis úklidu'!P92*2*'Základní údaje'!$C$11,0) -> 0
A117: =CONCATENATE('Rozpis úklidu'!A93," / ",'Rozpis úklidu'!F93," (",'Rozpis úklidu'!D93,")") -> buňka student (skladba 2+ 2): WC / sezonně (94) | B117: 0 | C117: =IF('Rozpis úklidu'!N93=0,'Rozpis úklidu'!M93*B117/60,'Rozpis úklidu'!N93*B117/60) -> 0 | D117: ='Rozpis úklidu'!L93 -> Typová činnost č.: 11 | E117: =IF(B117>0,'Rozpis úklidu'!P93*F117*'Základní údaje'!$C$11,0) -> 0 | F117: 0 | G117: =IF(F117<B117,(B117-F117)*'Rozpis úklidu'!P93*2*'Základní údaje'!$C$11,0) -> 0
A118: =CONCATENATE('Rozpis úklidu'!A94," / ",'Rozpis úklidu'!F94," (",'Rozpis úklidu'!D94,")") -> buňka student (skladba 2+ 2): koupelna se sprchou / sezonně (94) | B118: 0 | C118: =IF('Rozpis úklidu'!N94=0,'Rozpis úklidu'!M94*B118/60,'Rozpis úklidu'!N94*B118/60) -> 0 | D118: ='Rozpis úklidu'!L94 -> Typová činnost č.: 12 | E118: =IF(B118>0,'Rozpis úklidu'!P94*F118*'Základní údaje'!$C$11,0) -> 0 | F118: 0 | G118: =IF(F118<B118,(B118-F118)*'Rozpis úklidu'!P94*2*'Základní údaje'!$C$11,0) -> 0
A119: =CONCATENATE('Rozpis úklidu'!A95," / ",'Rozpis úklidu'!F95," (",'Rozpis úklidu'!D95,")") -> buňka student (skladba 2+ 2): pokoj / sezonně (188) | B119: 0 | C119: =IF('Rozpis úklidu'!N95=0,'Rozpis úklidu'!M95*B119/60,'Rozpis úklidu'!N95*B119/60) -> 0 | D119: ='Rozpis úklidu'!L95 -> Typová činnost č.: 6 | E119: =IF(B119>0,'Rozpis úklidu'!P95*F119*'Základní údaje'!$C$11,0) -> 0 | F119: 0 | G119: =IF(F119<B119,(B119-F119)*'Rozpis úklidu'!P95*2*'Základní údaje'!$C$11,0) -> 0
A120: =CONCATENATE('Rozpis úklidu'!A109," / ",'Rozpis úklidu'!F109," (",'Rozpis úklidu'!D109,")") -> buňka student (skladba 2 + 2 s balkónem): kuchyňka + vstupní prostory / sezonně (99) | B120: 0 | C120: =IF('Rozpis úklidu'!N109=0,'Rozpis úklidu'!M109*B120/60,'Rozpis úklidu'!N109*B120/60) -> 0 | D120: ='Rozpis úklidu'!L109 -> Typová činnost č.: 3 a 5 | E120: =IF(B120>0,'Rozpis úklidu'!P109*F120*'Základní údaje'!$C$11,0) -> 0 | F120: 0 | G120: =IF(F120<B120,(B120-F120)*'Rozpis úklidu'!P109*2*'Základní údaje'!$C$11,0) -> 0
A121: =CONCATENATE('Rozpis úklidu'!A110," / ",'Rozpis úklidu'!F110," (",'Rozpis úklidu'!D110,")") -> buňka student (skladba 2 + 2 s balkónem): komora / sezonně (99) | B121: 0 | C121: =IF('Rozpis úklidu'!N110=0,'Rozpis úklidu'!M110*B121/60,'Rozpis úklidu'!N110*B121/60) -> 0 | D121: ='Rozpis úklidu'!L110 -> Typová činnost č.: 3 | E121: =IF(B121>0,'Rozpis úklidu'!P110*F121*'Základní údaje'!$C$11,0) -> 0 | F121: 0 | G121: =IF(F121<B121,(B121-F121)*'Rozpis úklidu'!P110*2*'Základní údaje'!$C$11,0) -> 0
A122: =CONCATENATE('Rozpis úklidu'!A111," / ",'Rozpis úklidu'!F111," (",'Rozpis úklidu'!D111,")") -> buňka student (skladba 2 + 2 s balkónem): WC / sezonně (99) | B122: 0 | C122: =IF('Rozpis úklidu'!N111=0,'Rozpis úklidu'!M111*B122/60,'Rozpis úklidu'!N111*B122/60) -> 0 | D122: ='Rozpis úklidu'!L111 -> Typová činnost č.: 11 | E122: =IF(B122>0,'Rozpis úklidu'!P111*F122*'Základní údaje'!$C$11,0) -> 0 | F122: 0 | G122: =IF(F122<B122,(B122-F122)*'Rozpis úklidu'!P111*2*'Základní údaje'!$C$11,0) -> 0
A123: =CONCATENATE('Rozpis úklidu'!A112," / ",'Rozpis úklidu'!F112," (",'Rozpis úklidu'!D112,")") -> buňka student (skladba 2 + 2 s balkónem): koupelna se sprchou / sezonně (99) | B123: 0 | C123: =IF('Rozpis úklidu'!N112=0,'Rozpis úklidu'!M112*B123/60,'Rozpis úklidu'!N112*B123/60) -> 0 | D123: ='Rozpis úklidu'!L112 -> Typová činnost č.: 12 | E123: =IF(B123>0,'Rozpis úklidu'!P112*F123*'Základní údaje'!$C$11,0) -> 0 | F123: 0 | G123: =IF(F123<B123,(B123-F123)*'Rozpis úklidu'!P112*2*'Základní údaje'!$C$11,0) -> 0
A124: =CONCATENATE('Rozpis úklidu'!A113," / ",'Rozpis úklidu'!F113," (",'Rozpis úklidu'!D113,")") -> buňka student (skladba 2 + 2 s balkónem): pokoj / sezonně (198) | B124: 0 | C124: =IF('Rozpis úklidu'!N113=0,'Rozpis úklidu'!M113*B124/60,'Rozpis úklidu'!N113*B124/60) -> 0 | D124: ='Rozpis úklidu'!L113 -> Typová činnost č.: 6 | E124: =IF(B124>0,'Rozpis úklidu'!P113*F124*'Základní údaje'!$C$11,0) -> 0 | F124: 0 | G124: =IF(F124<B124,(B124-F124)*'Rozpis úklidu'!P113*2*'Základní údaje'!$C$11,0) -> 0
A125: =CONCATENATE('Rozpis úklidu'!A114," / ",'Rozpis úklidu'!F114," (",'Rozpis úklidu'!D114,")") -> buňka student (skladba 2 + 2 s balkónem): balkón / sezonně (99) | B125: 0 | C125: =IF('Rozpis úklidu'!N114=0,'Rozpis úklidu'!M114*B125/60,'Rozpis úklidu'!N114*B125/60) -> 0 | D125: ='Rozpis úklidu'!L114 -> Typový úklid č.: 2 | E125: =IF(B125>0,'Rozpis úklidu'!P114*F125*'Základní údaje'!$C$11,0) -> 0 | F125: 0 | G125: =IF(F125<B125,(B125-F125)*'Rozpis úklidu'!P114*2*'Základní údaje'!$C$11,0) -> 0
B126: Celkem hodin za víkend | C126: =SUM(C105:C125) -> 0 | D126: K FAKTURACI CELKEM: | E126: =SUM(E105:E125) -> 0 | G126: =SUM(G105:G125) -> 0
A127: Podpis vedoucí směny: | D127: Podpis zástupce vedení koleje:

Sheet Činnosti úklidu
A1: Úklidová činnost
B2: Úklidová činnost probíhá v čase od 07:00 hod. do 15.00 hod. v jednosměnném provozu v pětidenním pracovním týdnu, úklid hotelových pokojů musí být dle potřeby zajištěn i o víkendu. V době nastěhování a vystěhování studentů koncem letního semestru a začátkem zimního semestru stanovuje dobu pro úklid podle aktuálních potřeb vedoucí/zástupce vedoucí koleje a to včetně úklidu o víkendu. Při úklidu je potřeba používat úklidové, čistící a desinfekční prostředky vhodné pro daný předmět úklidu a dodržovat návody na použití příslušných úklidových, čistících a desinfekčních prostředků a bezpečnostní a hygienická pravidla
A3: Definice pojmů:
A4: Zametání | B4: pomocí vhodného smetáku zamést dané podlahové plochy.
A5: Vytírání | B5: pomocí mopu za použití vody a odpovídajícího saponátu vytřít dané podlahové plochy.
A6: Mytí | B6: pomocí hadru, utěrky nebo houbičky, za použití vody a odpovídajícího saponátu, umýt plochy nábytku, dveří, spotřebičů, keramických a jiných obkladů, topení apod.
A7: Čištění | B7: důkladné čištění, zvláště skvrn, za pomocí odpovídajících čisticích prostředků, ploch nábytku, dveří, spotřebičů, keramických a jiných obkladů, topení apod.
A8: Desinfekce | B8: po umytí nebo vyčištění daných ploch, podlah, spotřebičů aj. použít podle návodu odpovídající desinfekční prostředek.
A9: Leštění | B9: leštění všech skleněných a zrcadlových ploch za použití odpovídajícího přípravku na mytí a leštění skel.
A10: Luxování | B10: čištění podlah za použití vysavače.
A11: Strojové čištění | B11: se provádí za použití čistícího stroje na vodní nebo parní bázi (strojové čištění postelí, matrací, koberců apod.).
A12: Stírání prachu | B12: setření prachu vhodnou utěrkou za použití odpovídajícího přípravku na odstranění prachu, odstranění pavučin.
A13: Úklid odpadů | B13: řádné uvolnění, umytí, vyčištění a vydesinfikování odpadů na soc. zařízeních, WC, umývárnách a sprchových koutech za použití odpovídajících přípravků.
A14: Mimořádný úklid | B14: úklid znečištěného WC (mimo mísu), umývárny nebo společných prostor zvratky nebo exkrementy (uklízečka vyrozumí vedoucí/zástupce vedoucí koleje).
A15: Mytí oken | B15: umytí parapetů na mokro za použití odpovídajícího saponátu, umytí rámů oken na mokro za použití odpovídajícího saponátu, umytí a vyleštění oken odpovídajícím přípravkem na mytí a leštění oken.
A16: Zalévání květin | B16: zalití květin čistou odstátou vodou v přiměřeném množství s ohledem na druh rostliny. Podle potřeby použít odpovídající hnojivo v dávkování podle návodu k použití.
A17: Vynášení a likvidace odpadu | B17: vynesení odpadu ze všech odpadních nádob (i z prostoru okolo těchto nádob), a ze skartovaček, umytí odpadních nádob a doplnění pytlů na odpadky do odpadních nádob. Odpad dle možnosti vhodným způsobem třídit.
A18: Doplňování hotelových potřeb | B18: v hotelovém provozu doplnit toaletní papír do zásobníků doplnit ručníky a hotelové mýdlo.
A20: Číslo typové činnosti | B20: Popis typových pracovních činností:
A21: 1. | B21: Úklidem společných prostor, podlah chodeb, schodišť a vestibulu se rozumí: zamést a vytřít podlahy, odstranit našlapané žvýkačky a jiné nečistoty, vyluxovat podlahy kryté kobercem. Umýt parapety, zábradlí a hasicí přístroje umístěné na chodbách, vyleštit skleněné plochy na chodbách a ve vestibulech, setřít prach a pavučiny. Sepsat a nahlásit vedení koleje všechny závady a škody.
A22: 2. | B22: Úklidem balkonů se rozumí: zamést a vytřít podlahy, odstranit našlapané žvýkačky a jiné nečistoty, umýt parapety a zábradlí. Odstranit pavučiny. Vynést odpady a popř. i vysypat popelníky.
A23: 3. | B23: Úklidem společenských, (studoven, kluboven apod.) zájmových (posiloven, tělocvičen apod.) a zasedacích místností, kanceláří, skladů, šaten a výtahů se rozumí: zamést a vytřít podlahy, podlahy pokryté kobercem vyluxovat, setřít prach a pavučiny ze všech dosažitelných a volně přístupných míst a zařízení místností (topení, cvičební nářadí apod.), umýt a vyčistit skvrny kolem klik, dveří, vypínačů a světel. Srovnat nábytek a jiné vybavení místností. Srovnat nebo dověsit záclony a závěsy. Vyleštit zrcadla. Vynést odpad. Sepsat a nahlásit vedení koleje všechny závady a škody.
A24: 4. | B24: Úklidem prádelen se rozumí: zamést a vytřít podlahy, setřít prach a pavučiny ze všech dosažitelných a volně přístupných míst a zařízení místností (praček, topení, apod.). Vyčistit filtry praček, vyčistit zásobníky na prášek. Umýt a vyčistit dveře, kliky, vypínače a světla. Srovnat nebo dověsit záclony a závěsy. Vyleštit zrcadla. Vynést odpad. Sepsat a nahlásit vedení koleje všechny závady a škody.
A25: 5. | B25: Úklidem kuchyněk se rozumí: umýt, vyčistit a vydesinfikovat sporák, vařič, mikrovlnnou troubu, digestoř, pracovní desky a zařízení místnosti kuchyňky. Umýt, vyčistit a vydesinfikovat obklady. Pokud je kuchyňka vybavena nádobím umýt nádobí. Odmrazit a vyčistit lednici. Odstranit všechny prošlé nebo kazící se potraviny. Zamést a vytřít podlahy. Vynést odpad. Setřít prach a pavučiny. Sepsat a nahlásit vedení koleje všechny závady a škody.
A26: 6. | B26: Generálním úklidem pokojů po odchodu studentů se rozumí: umýt nábytek z venku (postele, stoly, židle, police, skříně apod.) i zevnitř (skříně, šuplíky, peřináče, postele apod.) a vyčistit od skvrn. Vyleštit zrcadla a okna. Vyluxovat/strojově vyčistit matrace postelí. Setřít prach a pavučiny (včetně žaluzií). Umýt a vyčistit veškeré obložení, lišty, obrazy, dveře, kliky, rámy oken, parapety, vypínače, zásuvky, topení, světla, lampičky apod. Umýt ledničku zevnitř i zvenku. Zamést a vytřít podlahy, podlahy kryté kobercem vyluxovat, a to i pod a za postelí, křesly a závěsy. Srovnat nebo dověsit záclony a závěsy, srovnat nábytek a jiné vybavení pokoje. Vynést odpad, umýt, otřít a vyleštit odpadkový koš. Zlikvidovat případné komáry a mouchy. Vyvětrat a popř. i navonět. Sepsat a nahlásit vedení koleje všechny závady a škody. Případné nalezené věci po ubytovaných předat vedení koleje.
A27: 7. | B27: Úklidem předsíní buněk se rozumí: úklid sociálního zařízení podle bodu 11. a 12. úklid kuchyňky podle bodu 5. Zamést a vytřít podlahy. Umýt a vyčistit pracovní plochy a nábytek. Setřít prach a pavučiny. Vynést odpad. Sepsat a nahlásit vedení koleje všechny závady a škody.
A28: 8. | B28: Úklidem hotelových pokojů po vystěhování se rozumí: umýt nábytek z venku (postele, stoly, židle, police, skříně apod.) i zevnitř (skříně, šuplíky, peřináče, postele apod.) a vyčistit od skvrn. Vyleštit zrcadla a okna. Převléct a ustlat postele, vyluxovat/strojově vyčistit matrace postelí. Setřít prach a pavučiny (včetně žaluzií). Umýt a vyčistit veškeré obložení, lišty, obrazy, dveře, kliky, rámy oken, parapety, vypínače, zásuvky, televizi, topení, světla, lampičky apod. Umýt nádobí. Umýt ledničku zevnitř i zvenku. Zamést a vytřít podlahy, podlahy kryté kobercem vyluxovat, a to i pod a za postelí, křesly a závěsy. Srovnat nebo dověsit záclony a závěsy, srovnat nábytek a jiné vybavení pokoje. Vynést odpad, umýt, otřít a vyleštit odpadkový koš. Zlikvidovat případné komáry a mouchy. Doplnit hotelové potřeby. Vyvětrat a popř. i navonět. Předat složené použité prádlo a ručníky skladní. Sepsat a nahlásit vedení koleje všechny závady a škody. Případné nalezené věci po hostech předat vedení koleje.
A29: 9. | B29: Úklidem hotelových pokojů v průběhu ubytování se rozumí: ustlání postelí, popř. výměna ložního prádla každý 4. den pobytu, výměna osušek a ručníků, doplnění toaletního papíru, vynesení odpadků, umytí koupelny (sprchový kout, WC, umyvadlo), vytření podlahy.
A30: 10. | B30: Přebráním uklizeného pokoje po studentech se rozumí: podle bodu 6. a 7. zkontrolovat úklid provedený studenty. Přebrat klíče od pokoje. Podepsat potvrzení o řádně provedeném úklidu a odevzdání klíčů. Sepsat a nahlásit vedení koleje všechny závady a škody. V případě nutnosti upozornit studenty na nedostatky v úklidu s tím, že je musí ve stanovené době odstranit, po té provést novou kontrolu úklidu. V případě, že ani napodruhé nebude pokoj řádně uklizen nahlásit tuto skutečnost vedení koleje.
A31: 11. | B31: Úklidem WC se rozumí: umýt, vyčistit a vydesinfikovat místnost WC, umýt záchodovou mísu zevnitř i zvenku umýt nohu a trubku za WC, umýt prkýnko a nádobu na splachovací vodu, popř. umýt pisoáry, umyvadla, baterie, obklady, odpady, podlahy a dveře. Otřít držák na toaletní papír. Umýt dlaždičky a silikon od plísně. Vylít vodu a otřít pouzdro na WC štětku. Vyleštit zrcadla. Vynést odpad. Setřít prach a pavučiny. Vždy za použití odpovídajícího mycího/čistícího přípravku.
A32: 12. | B32: Úklidem koupelen a sprch se rozumí: umýt, vyčistit a vydesinfikovat umyvadlo zevnitř i zvenku včetně trubek pod ním, baterie, sprchový kout, obklady, poličku nad umyvadlem i ve sprchovém koutě, odpady, podlahy a dveře. Umýt stěny sprchového koutu, gumové těsnění popř. závěs sprchového koutu. Odstranit rez a vodní kámen. Vynést odpad. Vyleštit zrcadlo, poličku, sprchu a držák na sprchu. Umýt dlaždičky a silikon od plísně. Vynést odpad. Setřít prach a pavučiny. Vždy za použití odpovídajícího mycího/čistícího přípravku
